{"text_format":"1","workbook":"xlsx","n_sheets":6,"sheets":["ПЕЧАТЬ","ПРАЙС","Сертиф","shHelp","shLists","Tmp_####"],"not_rendered":{"charts":0,"images":6,"macros":1,"external_links":0,"defined_names":3,"comments":0,"pivot_tables":0},"unopened":[],"bounds":{"document_bytes":16777216,"sheet_cells":100000,"rows_first":2000,"rows_last":500,"rows_between":2000,"halvings":0,"cell_chars":16384,"cell_head_chars":4096},"cells_cut":0,"cells_raw":0,"read":"whole","date_system":"1900"}

{"sheet":"ПЕЧАТЬ","index":0,"n_rows":103,"n_cols":8,"rows_kept":103,"cut":false,"hidden":false,"merged":[[68,0,68,5],[54,0,55,5],[66,0,66,5],[64,0,64,2],[56,0,56,5],[67,0,67,5],[43,0,43,1],[42,0,42,5],[13,0,13,5],[18,0,18,5],[17,0,17,5],[14,0,14,5],[16,0,16,5],[15,0,15,5],[8,3,8,5],[10,0,10,5],[12,4,12,5],[9,0,9,1],[9,2,9,3],[11,0,11,5],[94,0,96,5],[88,2,88,5],[90,1,90,4],[74,0,74,5],[84,0,84,2],[92,0,92,5],[93,2,93,5],[89,2,89,5],[87,0,87,5],[86,0,86,5],[91,2,91,5],[76,3,76,5],[91,0,91,1],[88,0,88,1],[102,2,102,3],[97,0,97,5],[98,0,98,5],[100,0,100,2],[101,4,101,5],[101,0,101,2],[100,4,100,5],[99,0,99,2],[72,0,72,5],[19,0,19,5],[40,0,40,5],[65,0,65,5],[53,0,53,5],[57,0,57,5],[20,0,20,5],[61,0,61,2],[47,0,47,5],[48,0,48,5],[41,0,41,5],[50,0,50,5],[52,0,52,5],[51,0,51,5],[58,0,58,5],[44,0,44,2],[84,6,84,11],[77,2,78,5],[84,3,84,5],[80,2,81,5],[45,0,45,5],[46,0,46,5],[63,0,63,4],[75,3,75,5],[76,0,83,1],[71,0,71,5],[59,0,59,5],[60,0,60,5],[62,0,62,5],[49,0,49,5],[70,0,70,5],[69,0,69,5]]}
["2023-10-25T11:37:00"]
[]
[]
[]
[]
[7978]
[]
[{"$f":"\"Договор \"&$C$10&\" \"&#REF!","v":{"$error":"#REF!"}}]
[]
["Договор №",null,"3498"]
["на оказание платных медицинских услуг"]
[{"$f":"\"г.Симферополь \"&TEXT($A$1,\"дд ММММ ГГГГ\")&\"г.\"","v":"г.Симферополь 25 Октябрь 2023г."}]
[null,null,null,null,{"$f":"\"в \"&TEXT($A$1,\"ЧЧ:ММ\")&\" по м.в.\"","v":"в 11:37 по м.в."}]
["Государственное бюджетное учреждение здравоохранения Республики Крым «Республиканская детская клиническая больница» (свидетельство о государственной регистрации юридического лица в Единый государственный реестр юридических лиц 91№000016825 от 30.12.2014 года ИФНС по г. Симферополю), именуемое в дальнейшем «Исполнитель», осуществляющее деятельность из числа указанных в части 1 статьи 12 Федерального закона «О лицензировании отдельных видов деятельности» регистрационный номер лицензии № Л041-1177-91/00355224 от  24 июля 2020 г., выданной Министерством здравоохранения Республики Крым (295005, Республика Крым, г. Симферополь, проспект Кирова 13, тел. 7-3652-544-684) (срок действия - бессрочно),  в лице Главного врача Олейника Анатолия Васильевича, действующего на основании Устава, с одной стороны, и гражданин (ка)"]
[]
["(Законный представитель, именуемый в дальнейшем \"Заказчик\", и действующий в интересах несовершеннолетнего ребенка (пациента)              "]
[]
[]
["(Пациент, именуемый в дальнейшем \"Потребитель\" и (или) \"Пациент\") "]
["1. ПРЕДМЕТ ДОГОВОРА"]
["1.1. Настоящий договор определяет условия оказания платных медицинских услуг. «Заказчик» поручает, а «Исполнитель» обязуется оказать «Пациенту» (Потребителю) платную медицинскую услугу (или услуги) согласно сметы на оказание платной медицинской услуги"]
["№№\n п/п","Кассовый код","Код медицинской услуги,                                Наименование медицинской услуги","Количество услуг","Цена","Сумма"]
[1,{"$f":"IFERROR(VLOOKUP(C23,ПРАЙС,2,0),\"\")","v":""},null,null,{"$f":"IFERROR(VLOOKUP(C23,ПРАЙС,3,0),\" -------- \")","v":" -------- "},{"$f":"IFERROR(E23*D23,\" -------- \")","v":" -------- "}]
[2,{"$f":"IFERROR(VLOOKUP(C24,ПРАЙС,2,0),\"\")","v":""},null,null," -------- "," -------- "]
[3,{"$f":"IFERROR(VLOOKUP(C25,ПРАЙС,2,0),\"\")","v":""},null,null," -------- "," -------- "]
[4,{"$f":"IFERROR(VLOOKUP(C26,ПРАЙС,2,0),\"\")","v":""},null,null," -------- "," -------- "]
[5,{"$f":"IFERROR(VLOOKUP(C27,ПРАЙС,2,0),\"\")","v":""},null,null," -------- "," -------- "]
[6,{"$f":"IFERROR(VLOOKUP(C28,ПРАЙС,4,0),\"\")","v":""},null,null," -------- "," -------- "]
[7,"",null,null," -------- "," -------- "]
[8,"",null,null," -------- "," -------- "]
[9,{"$f":"IFERROR(VLOOKUP(C31,ПРАЙС,4,0),\"\")","v":""},null,null,{"$f":"IFERROR(VLOOKUP(C31,ПРАЙС,3,0),\" -------- \")","v":" -------- "},{"$f":"IFERROR(E31*D31,\" -------- \")","v":" -------- "}]
[10,{"$f":"IFERROR(VLOOKUP(C32,ПРАЙС,4,0),\"\")","v":""},null,null,{"$f":"IFERROR(VLOOKUP(C32,ПРАЙС,3,0),\" -------- \")","v":" -------- "},{"$f":"IFERROR(E32*D32,\" -------- \")","v":" -------- "}]
[11,{"$f":"IFERROR(VLOOKUP(C33,ПРАЙС,4,0),\"\")","v":""},null,null,{"$f":"IFERROR(VLOOKUP(C33,ПРАЙС,3,0),\" -------- \")","v":" -------- "},{"$f":"IFERROR(E33*D33,\" -------- \")","v":" -------- "}]
[12,{"$f":"IFERROR(VLOOKUP(C34,ПРАЙС,4,0),\"\")","v":""},null,null,{"$f":"IFERROR(VLOOKUP(C34,ПРАЙС,3,0),\" -------- \")","v":" -------- "},{"$f":"IFERROR(E34*D34,\" -------- \")","v":" -------- "}]
[13,{"$f":"IFERROR(VLOOKUP(C35,ПРАЙС,4,0),\"\")","v":""},null,null,{"$f":"IFERROR(VLOOKUP(C35,ПРАЙС,3,0),\" -------- \")","v":" -------- "},{"$f":"IFERROR(E35*D35,\" -------- \")","v":" -------- "}]
[14]
[15]
[16]
["Итого",null,null,null,{"$f":"SUM(E23:E35)","v":0},{"$f":"SUM(F23:F38)","v":0}]
[]
["и утвержденного Прейскуранта. Заказчик, Потребитель  (Пациент) информированы о том, что платная медицинская услуга, оказываемая согласно данному Договору, может быть получена Пациентом бесплатно, в соответствии с Постановление Правительства Российской Федерации от 29.12.2022 № 2497 \"О Программе государственных гарантий бесплатного оказания гражданам медицинской помощи на 2023 год и на плановый период 2024 и 2025 годов\", в сроки и в порядке установленным Постановлением Совета министров Республики Крым от 28 декабря 2022 года № 1271 «Об утверждении Территориальной программы государственных гарантий бесплатного оказания гражданам медицинской помощи в Республике Крым на 2023 год и на плановый период 2024 и 2025 годов».  Сроки оказания медуслуг определяют исходя из конкретной клинической ситуации пациента. Сроки согласуются с пациентом в медицинской документации, которая представляет собой неотъемлемую часть договора.  \n     Медицинская помощь оказывается гражданам в трех формах – плановая, неотложная и экстренная.\n     Экстренная форма предусматривает оказание медицинской помощи при внезапных острых заболеваниях, состояниях, обострении хронических заболеваний, представляющих угрозу жизни пациента. При этом медицинская помощь в экстренной форме оказывается медицинской организацией и медицинским работником гражданину безотлагательно и бесплатно. Отказ в ее оказании не допускается.\n      Неотложная форма предусматривает оказание медицинской помощи при внезапных острых заболеваниях, состояниях, обострении хронических заболеваний без явных признаков угрозы жизни пациента.\n      Плановая форма предусматривает оказание медицинской помощи при проведении профилактических мероприятий, при заболеваниях и состояниях, не сопровождающихся угрозой жизни пациента, не требующих экстренной и неотложной медицинской помощи, и отсрочка оказания которой на \n   "]
["определенное время не повлечет за собой ухудшение состояния пациента, угрозу его жизни и здоровью.\n     В зависимости от этих форм Правительством Российской Федерации устанавливаются предельные сроки ожидания медицинской помощи.\n     Так, сроки ожидания оказания первичной медико-санитарной помощи в неотложной форме не должны превышать 2 часов с момента обращения пациента в медицинскую организацию.\n      Сроки ожидания оказания медицинской помощи в плановой форме для:\n -  проведения консультаций врачей-специалистов не должны превышать 14 календарных дней со дня обращения пациента в медицинскую организацию;\n -  приема врачами-терапевтами участковыми, врачами общей практики (семейными врачами), врачами-педиатрами участковыми не должны превышать 24 часов с момента обращения пациента в медицинскую организацию;"]
["    - проведения диагностических инструментальных (рентгенографические исследования, включая маммографию, функциональная диагностика, ультразвуковые исследования) и лабораторных исследований при оказании первичной медико-санитарной помощи не должны превышать 14 календарных дней со дня назначения;\n    - проведения компьютерной томографии (включая однофотонную эмиссионную компьютерную томографию), магнитно-резонансной томографии и ангиографии при оказании первичной медико-санитарной помощи не должны превышать 30 календарных дней, а для пациентов с онкологическими заболеваниями – 14 календарных дней со дня назначения;\n    -  специализированной (за исключением высокотехнологичной) медицинской помощи не должны превышать 30 календарных дней со дня выдачи лечащим врачом направления на госпитализацию, а для пациентов с онкологическими заболеваниями - 14 календарных дней с момента установления диагноза заболевания. \n      Заключение договора означает полное согласие Пациента на оказание медицинских услуг согласно условий данного Договора."]
["1.2. Срок оказания медицинской услуги: ",null,{"$f":"$A$1","v":"2023-10-25T11:37:00"}]
["1.3. Режим работы Исполнителя: 08:00 – 15:30 по м.в."]
["1.4. В случае если при предоставлении платных медицинских услуг потребуется предоставление дополнительных медицинских услуг по экстренным показаниям для устранения угрозы жизни Потребителя при внезапных острых заболеваниях, состояниях, обострениях хронических заболеваний, такие медицинские услуги оказываются без взимания платы в соответствии с Федеральным законом от 21 ноября 2011 года № 323-ФЗ «Об основах охраны здоровья граждан в Российской Федерации». Расходы, связанные с оказанием Потребителю медицинской помощи в экстренной форме, возмещаются Исполнителю в порядке и размерах, которые установлены органом исполнительной власти субъекта Российской Федерации в рамках территориальных программ в соответствии с пунктом 10 части 2 статьи 81 Федерального закона от 21 ноября 2011 года № 323-ФЗ «Об основах охраны здоровья граждан в Российской Федерации»."]
["1.5.Заказчик, Потребитель подтверждает, что согласен на осуществление отдельных консультаций или медицинских вмешательств, в том числе в объеме, превышающем объем выполняемого стандарта медицинской помощи.  При возникновении необходимости выполнения дополнительных услуг, не предусмотренных договором, они выполняются с согласия «Заказчика» с оплатой по утвержденному прейскуранту, посредством заключения дополнительного соглашения к данному договору или заключением нового договора."]
["2. СТОИМОСТЬ И ПОРЯДОК ОПЛАТЫ."]
["2.1. Цена услуги, при отсутствии необходимости выполнения других работ, не предусмотренных в договоре, устанавливается на уровне"]
[{"$f":"F39","v":0}]
["2.2. «Заказчик» обязан в течение 3-х банковских дней с момента заключения договора произвести оплату медицинской услуги.\n"]
["2.3. Оплата производится до оказания медицинской услуги в кассу «Исполнителя» или перечислением на расчетный счет, на основании действующего у Исполнителя прейскуранта в соответствии с фактическим объемом оказанных услуг  и сметы оказанной услуги, которая является неотъемлемой частью Договора. Оплата может быть произведена самим «Заказчиком», его страховой компанией либо третьим заинтересованным физическим или юридическим лицом на основании счета, выписанного «Исполнителем». Оплата производится в полном объеме. Потребитель ознакомлен с прейскурантом до подписания настоящего договора. "]
["2.4. В случае возникновения необходимости приобретения «Заказчиком» для Потребителя (Пациента) дополнительных медицинских расходных материалов для оказания медицинской услуги, указанной в п. 1.1. настоящего договора, и их отсутствия у «Исполнителя», «Заказчик» должен приобрести следующие расходные материалы _______________________________________________________________________________"]
["3. ПРАВА И ОБЯЗАННОСТИ СТОРОН."]
["3.1. «Исполнитель» обязан:\n- оказать  \"Потребителю\" («Пациенту») квалифицированную, качественную медицинскую помощь в установленный договором срок; организовывать и осуществлять медицинскую деятельность в соответствии с законодательством Российской Федерации, в том числе положениями об организации оказания медицинской помощи и порядками оказания медицинской помощи, организации медицинской реабилитации и санаторно-курортного лечения, проведения медицинских экспертиз, диспансеризации, диспансерного наблюдения, медицинских осмотров и медицинских освидетельствований, на основе клинических рекомендаций, а также с учетом стандартов медицинской помощи, в установленный договором срок; По требованию Заказчика и (или) Потребителя предоставить ему в доступной форме информацию о платных медицинских услугах, содержащую следующие сведения:\n- порядки оказания медицинской помощи и стандарты медицинской помощи, применяемые при предоставлении платных медицинских услуг;\n- информацию о конкретном медицинском работнике, предоставляющем соответствующую платную медицинскую услугу (его профессиональном образовании и квалификации);\n- информацию о методах оказания медицинской помощи, связанных с ними рисках, возможных видах медицинского вмешательства, их последствиях и ожидаемых результатах оказания медицинской помощи;\n- другие сведения, относящиеся к предмету настоящего договора..\n- предоставить Заказчику и (или) Потребителю («Пациенту») бесплатную, доступную, полную, достоверную информацию о заболевании, предоставляемой услуге и возможных осложнениях. В случае если при предоставлении платных медицинских услуг требуется предоставление на возмездной основе дополнительных медицинских услуг, не предусмотренных договором, Исполнитель обязан предупредить об этом Потребителя.\nБез согласия Потребителя Исполнитель не вправе предоставлять дополнительные медицинские услуги на возмездной основе. \n- уведомить Потребителя о том, что граждане, находящиеся на лечении, в соответствии с Федеральным законом от 21.11.2011 № 323-ФЗ «Об основах охраны здоровья граждан в Российской Федерации» обязаны соблюдать режим лечения, в том числе определенный на период их временной нетрудоспособности, и правила поведения пациента в медицинских организациях.\n3.2. «Исполнитель» имеет право:\n- в случае возникновения неотложных состояний самостоятельно определять объем исследований, манипуляций, оперативных вмешательств, необходимых для установления диагноза, обследования и оказания медицинской помощи, в т.ч. и не предусмотренной договором.\n3.3. Заказчик и (или) \"Потребитель\" («Пациент») обязан:\n- своевременно оплатить стоимость услуг;\n- сообщить врачу до начала медицинского вмешательства полные сведения о состоянии своего здоровья, перенесенных и наследственных заболеваниях, противопоказаниях, профессиональных вредностях, вредных привычках (курение, употребление алкоголя, наркотиков, токсических веществ), переносимости лекарственных средств, аллергических проявлениях, эпидемиологических данных;\n-соблюдать назначения лечащего врача и медицинского персонала;\n"]
[]
["– соблюдать установленные предписания и правила при пребывании в лечебном учреждении;\n-не применять не назначенные препараты и иные методы диагностики и лечения;\n"]
["– консультироваться со специалистами других медицинских учреждений только по согласованию с исполнителями медицинских услуг и сообщать об их результатах.                                                                                                                                                                                                                                                                                                         3.4. \"Потребитель\" («Пациент»), его законный представитель, имеет право:\n-на предоставление информации о медицинской услуге;\n-знакомиться со своей медицинской документацией, документами, подтверждающими специальную правоспособность учреждения и его врачей;                                                                                                                                                                – получить заключение с указанием результатов проведенных исследований, лечебных мероприятий и необходимых рекомендаций;"]
["– на устранение вреда, в случае неполного оказания медицинской услуги, в случае если данный вред был причинен по вине Исполнителя, в судебном порядке;\n-отказаться от получения медицинской услуги до ее оказания, уведомив Исполнителя об этом не менее за 3 (три) дня и получить обратно оплаченную сумму с возмещением «Исполнителю» затрат, связанных с подготовкой оказания услуги.\n"]
["4. ИНФОРМАЦИЯ О ПРЕДОСТАВЛЯЕМОЙ МЕДИЦИНСКОЙ УСЛУГЕ."]
["4.1. Информацию об оказываемой медицинской услуге \"Заказчик\", \"Потребитель\"  («Пациент») получает в устной форме от специалиста-"]
["Краснова Виктория Валерьевна"]
["4 2. Перед оказанием медицинской услуги врач устанавливает отсутствие противопоказаний. При их наличии медицинская услуга не оказывается."]
["4.3. Медицинскую услугу выполняет специалист"]
["квалификационной категории, имеющий сертификат специалиста"]
[{"$f":"IFERROR(VLOOKUP(A62,Сертификаты,4,FALSE),\" -------- \")","v":"ФГБУ ДПО \"Центральная медицинская академия \"Управление по делам РФ 0377180766879 от 04.12.2017года"}]
["4.4. Порядок и условия выдачи потребителю (законному представителю потребителя) после исполнения договора  исполнителем медицинских документов: результаты медицинской услуги (копии медицинских документов, выписки из медицинских документов), отражающие состояние его здоровья после получения платных медицинских услуг, включая сведения о результатах обследования, диагнозе, методах лечения, об используемых при предоставлении платных медицинских услуг лекарственных препаратах и медицинских изделиях, без взимания дополнительной платы, осуществляется по запросу \"Заказчика\" и (или) \"Потребителя\" (\"Пациента\")не ранее оказания медицинской услуги и не позднее 10 (десяти) рабочих дней с момента её оказания, в зависимости от вида и сложности оказанной услуги. В случае нахождения пациента (потребителя) на стационарном лечении - в течении 1 (одного) рабочего дня."]
["4.5. С учетом самой технологии выполнения медицинской услуги \"Заказчик\", \"Потребитель\" («Пациент») \nдолжен осознавать вероятность (но не обязательность) вредных (побочных) эффектов медицинского вмешательства и осложнений, что может причинить вред здоровью, о чем \"Заказчик\", \"Потребитель\", «Пациент» в устной форме информируется специалистом, оказывающим медицинские услуги до момента подписания договора.\n4.6. В связи с тем, что вышеперечисленные побочные эффекты и осложнения возникают вследствие биологических особенностей организма и используемая технология оказания медицинской помощи не может полностью исключить их вероятность, «Исполнитель» не несет ответственность за наступление осложнений, если медицинская услуга оказана с соблюдением всех необходимых требований. В случае если осложнения потребовали оказания срочной медицинской помощи, согласно Тарифному соглашению по Республике Крым и  Федеральному Закону «О обязательном медицинском страховании», «Исполнитель» устраняет подобные вредные последствия без дополнительной оплаты.\n4.7. В связи с оказанием медицинской услуги в предусмотренных нормативными актами случаях, при госпитализации, \"Потребителю\" («Пациенту»), законному представителю, по его требованию выдается листок нетрудоспособности.\n4.8. \"Потребитель\" («Пациент»), его законный представитель (\"Заказчик\") подтверждает, что ознакомлен с «Правилами оказания медицинских услуг» в «ГБУЗРК «РДКБ»», с дополнительной информацией, касающейся особенностей данной медицинской услуги и условий ее предоставления, до начала оказания медицинской услуги. \"Заказчик\" и \"Потребитель\" (\"Пациент\") уведомлены о том, что граждане, \n"]
["находящиеся на лечении, в соотвествии с Федеральным законом \"Об основах охраны здоровья граждан в Российской Федерации\" обязаны соблюдать режим лечения, в том числе определенный на период их временной нетрудоспособности, и правила поведения пациента в медицинских организациях, а именно в ГБУЗРК \"РДКБ\"."]
["5. ОТВЕТСТВЕННОСТЬ СТОРОН."]
["5.1.В случае неполного оказания медицинской услуги \"Заказчик\" и (или) \"Потребитель\" («Пациент») вправе потребовать безвозмездного устранения недостатков оказанной услуги, если услуга была оказана в ненадлежащем виде. Факт ненадлежащего оказания медицинской услуги должен быть зафиксирован. Исполнитель, в свою очередь, обязуется исполнить услугу в полном ее объеме и приложить все зависящие от него усилия для ее исполнения.\n5.2. «Исполнитель» освобождается от ответственности за неисполнение или ненадлежащее исполнение своих обязанностей по договору, если докажет, что это произошло вследствие непреодолимой силы, нарушения  \"Заказчиком\", \"Потребителем\" («Пациентом») своих обязанностей или по Другим основаниям, предусмотренным законодательством.                                                                                                                                                                                                                   5.3. \"Заказчик\" и (или) \"Потребитель\" («Пациент») обязан возместить медицинскому учреждению фактически произведенные расходы по оказанию услуги, если «Исполнитель» не смог или был вынужден прекратить ее оказание по вине \"Заказчика\" и (или) \"Потребителя\" («Пациента»). \n"]
["6. ПРОЧИЕ УСЛОВИЯ."]
["6.1. Договор составляется в трех экземплярах (по одному для Заказчика, Потребителя и Исполнителя). В случае если договор заключается между Потребителем и Исполнителем, он составляется в двух экземплярах. Договор вступает в силу с момента его подписания сторонами и действует до момента исполнения обязательств."]
[null,null,null,null,null,null,{"$error":"#REF!"},{"$error":"#REF!"}]
["6.2. Споры и разногласия решаются путей переговоров и в судебном порядке. Договор может быть изменен по обоюдному согласию сторон посредством письменного заключения дополнительного соглашения.\n6.3. Договор может быть расторгнут по соглашению сторон.\n6.4. \"Заказчик\" вправе расторгнуть договор об оказании услуги и потребовать полного возмещения убытков, если выявленные недостатки оказанной услуги не устранены «Исполнителем». «Заказчик» вправе расторгнуть договор также в тех случаях, если им обнаружены существенные недостатки оказанной услуги или иные существенные отклонения от условий договора.\n6.5. Договор может быть расторгнут и по другим основаниям, предусмотренным законодательством Российской Федерации.\n6.6. Сторона, считая, что ее права по настоящему договору нарушены, может направить другой стороне претензию, которая рассматривается в течение 10 рабочих дней. В случае неполучения ответа или неудовлетворения ответом, пославшая претензию сторона может обратиться в суд. За неисполнение или ненадлежащее исполнение обязательств по договору стороны несут ответственность, предусмотренную законодательством Российской Федерации. Вред, причиненный жизни или здоровью пациента в результате оказания платных медицинских услуг ненадлежащего качества, подлежит возмещению Исполнителем в соответствии с законодательством Российской Федерации. \n\n",null,null,null,null,null,{"$error":"#REF!"}]
["Исполнитель:",null,"Пациент:"]
["295034, Республика Крым, г. Симферополь,  ул. Титова 71, Министерство финанов Республики Крым (ГБУЗРК \"РДКБ\", л/с 20756Щ92660), Единый казначейский счет 40102810645370000035\nОГРН 1149102171096\nИНН 9102064095 / КПП 910201001\nОКПО 00807263, \nКазначейский счет, открытый в УФК по Республике Крым 03224643350000007500 \nБИК 013510002,  Банк получателя: ОТДЕЛЕНИЕ РЕСПУБЛИКА КРЫМ БАНКА РОССИИ // УФК по Республике Крым г.Симферополь, КБК 00000000000000000130\nEmail: rdkb@mail.ru",null,"ФИО: ",{"$f":"$A$15","v":0}]
[null,null,{"$f":"$A$16","v":"(Законный представитель, именуемый в дальнейшем \"Заказчик\", и действующий в интересах несовершеннолетнего ребенка (пациента)              "}]
[]
[null,null,"Адрес проживания:"," "]
[null,null,null,null,null,null," "]
[]
[]
[]
["_______________________ Главный врач Олейник А.В."]
[null,null,null,null,null,null,{"$error":"#REF!"}]
[{"$f":"\"Приложение № 1 к Договору № \"&C10&\" об оказании платных медицинских услуг физическим лицам от \"&TEXT($A$1,\"дд ММММ ГГГГ\")&\" г.\"","v":"Приложение № 1 к Договору № 3498 об оказании платных медицинских услуг физическим лицам от 25 Октябрь 2023 г."}]
["Согласие на обработку персональных данных"]
["Я, нижеподписавшийся,",null,{"$f":"$A$15","v":0}]
[null,null,{"$f":"$A$16","v":"(Законный представитель, именуемый в дальнейшем \"Заказчик\", и действующий в интересах несовершеннолетнего ребенка (пациента)              "}]
[]
["проживающий по адресу:",null,{"$f":"$C$81","v":0}]
[{"$f":"\"паспорт серии \"&A2&\" ,номер \"&A3&\" ,выдан \"&A4","v":"паспорт серии  ,номер  ,выдан "}]
[null,null,"(дата выдачи и название выдавшего органа)"]
["(далее по тексту «Пациент»), в соответствии с требованиями статьи 9 Федерального закона от 27.07.2006г. «О персональных данных» №152-ФЗ, статьи 13 Федерального закона РФ от 21.11.2011г. «Об основах охраны здоровья граждан в РФ» №323-ФЗ, подтверждаю свое согласие на обработку ГБУЗРК «Республиканская детская клиническая больница», юридический адрес: Республика Крым, 295034, город Симферополь, ул. Титова, д. № 71, стр. 1, (далее — Оператор), моих персональных данных, включающих фамилию, имя, отчество, пол, дату рождения, адрес места жительства, реквизиты паспорта (документа удостоверения личности), реквизиты полиса ОМС/ДМС, страховой номер индивидуального лицевого счета в Пенсионном фонде России (СНИЛС), информацию о факте обращения за медицинской помощью, данные о состоянии моего здоровья, диагнозах, заболеваниях, случаях обращения за медицинской помощью в медико-профилактических целях, в целях установления медицинского диагноза и оказания медицинских услуг, и иная информация, полученная при моем обследовании и лечении (далее –«персональные данные») при условии, что обработка данных осуществляется лицом, профессионально занимающимся медицинской деятельностью, обязанным сохранять врачебную тайну. \n      В процессе оказания Оператором мне медицинской помощи я, в интересах обследования и лечения, предоставляю право медицинским работникам Оператора передавать мои персональные данные, должностным лицам Оператора, осуществляющим обработку персональных данных в силу своих должностных обязанностей, медицинским работникам медицинских организаций, с которыми Оператором заключен договор на оказание платных медицинских услуг, в рамках которого мне оказывается медицинская помощь.\n      В процессе оказания Оператором мне медицинской помощи в рамках договоров на оказание платных медицинских услуг (далее –договор), заключенных Оператором с юридическими и физическими лицами, сведения о которых указываются в приложении к настоящему согласию, (далее – Заказчик), я, в интересах обследования и лечения, предоставляю право работникам Оператора в течение срока оказания мне медицинских услуг (срок прикрепления) по договору передавать мои персональные данные Заказчику, в том числе, включающие в себя информацию о состоянии моего здоровья, диагнозе, заболеваниях, с целью учета и отчётности по договору, а также с целью осуществления Заказчиком контроля качества объемов и сроков оказания медицинской помощи по договору, с целью сообщения информации о наличии у меня заболевания, исключающего медицинское обслуживание по программам добровольного медицинского страхования (для договора, заключённого со страховой компанией), с целью предоставления Заказчику результатов проведения медицинского осмотра(профилактического, периодического, предварительного), в том числе предоставлять уполномоченным сотрудникам Заказчика на обозрение медицинскую документацию (медицинскую карту) (ее копии) в полном объеме. \n      Предоставляю Оператору право осуществлять любое действие (операция) или совокупность действий (операций), совершаемых с использованием средств автоматизации или без использования таких средств с моими персональными данными, включая сбор, запись, систематизацию, накопление, хранение, уточнение (обновление, изменение), извлечение, использование, передачу (распространение, предоставление, доступ), обезличивание, блокирование, удаление, уничтожение персональных данных. Оператор вправе обрабатывать мои персональные данные посредством внесения их в электронную базу данных, включения в списки (реестры) и отчетные формы, предусмотренные документами, регламентирующими предоставление отчетных данных (документов) по договорам, а также путем передачи персональных данных (в том числе информацию, содержащую сведения о врачебной тайне), по телефону на номер, указанный Заказчиком, с целью согласования оказания мне медицинских услуг в случаях, предусмотренных договором (в случае если медицинские услуги оказываются в рамках такого договора).\n      Срок хранения моих персональных данных соответствует сроку хранения медицинских документов (в т.ч. медицинской карты) и составляет не менее 25 (двадцать пять) лет. Передача моих персональных данных иным лицам или иное их разглашение может осуществляться только с моего письменного согласия, если иное не предусмотрено законодательством Российской Федерации. Настоящее согласие дано мной с момента подписания и действует бессрочно. Я оставляю за собой право отозвать настоящее согласие посредством составления соответствующего письменного документа, который может быть направлен мной в адрес Оператора по почте заказным письмом с уведомлением о вручении либо вручен лично под расписку представителю Оператора.                                                                                                                                                                                                                                                                                                                В случае получения моего письменного заявления об отзыве настоящего согласия на обработку персональных данных Оператор обязан:\n • прекратить их обработку по истечению периода времени, необходимого для завершения взаиморасчетов по оплате оказанных мне до этого медицинских услуг; \n• по истечении указанного выше срока хранения моих персональных данных (двадцать пять лет) уничтожить (стереть) все мои персональные данные, в том числе из баз данных автоматизированной информационной системы Оператора, включая все копии на машинных носителях информации, без уведомления меня об этом.\n Настоящим подтверждаю свое согласие на обработку Оператором моего контактного телефона, адреса электронной почты и почтового адреса, с целью информирования меня о предстоящем посещении врача, сроках оказания услуг, предоставления иных, связанных с исполнением договора на оказание медицинских услуг, сведений, в том числе результатов медицинского исследования, анализов, иную медицинскую документацию, путем предоставления соответствующей информации с помощью электронной почты, смс-информирования, почтовой рассылки (я уведомлен, что информация будет направлена по незащищенным каналам связи, в связи с чем, Оператор не может нести ответственность за несанкционированное попадание сведений к третьим лицам).\n\n"]
[]
[]
[{"$f":"\"Контактные телефоны:  моб.  \"&A6","v":"Контактные телефоны:  моб.  7978"}]
[{"$f":"\"Адрес электронной почты: \"&A7","v":"Адрес электронной почты: "}]
[{"$f":"$A$15","v":0}]
[{"$f":"$A$16","v":"(Законный представитель, именуемый в дальнейшем \"Заказчик\", и действующий в интересах несовершеннолетнего ребенка (пациента)              "}]
["(ФИО заявителя)",null,null,null,"(подпись)"]
[{"$f":"\"Дата \"&TEXT($A$1,\"дд.МММ.ГГГГ\")&\" г.\"","v":"Дата 25.окт.2023 г."}]

{"sheet":"ПРАЙС","index":1,"n_rows":492,"n_cols":3,"rows_kept":492,"cut":false,"hidden":false,"merged":[]}
["НАИМЕНОВАНИЕ УСЛУГИ","КАССОВЫЙ КОД","ЦЕНА"]
[" A26.06.082.002 Определение антител к бледной трепонеме (Treponema pallidum) иммуноферментным методом (ИФА) в крови  ",1,579]
[" A26.06.036 Определение антигена (HbsAg) вируса гепатита В (Hepatitis B virus) в крови  ",2,661]
[" A26.06.041.002 Определение суммарных антител классов М и G (anti-HCV IgG и anti-HCV IgM) к вирусу гепатита С (Hepatitis С virus) в крови  ",3,575]
[" A26.06.045.001 Определение антител класса G (IgG) к вирусу простого герпеса 1 типа (Herpes simplex virus 1) в крови             ",4,818]
[" A26.06.045.003 Определение антител класса G (IgG) к вирусу простого герпеса 2 типа (Herpes simplex virus 2) в крови   ",5,818]
[" A26.06.045.003 Определение антител класса М (IgM) к вирусу простого герпеса 1 и 2 типов (Herpes simplex virus types 1, 2) в крови  ",6,810]
[" A26.06.022.001 Определение антител класса G (IgG) к цитомегаловирусу (Cytomegalovirus) в крови  ",7,847]
[" A26.06.022.002 Определение антител класса М (IgM) к цитомегаловирусу (Cytomegalovirus) в крови  ",8,805]
[" A26.06.081.001 Определение антител класса G (IgG) к токсоплазме (Toxoplasma gondii) в крови  ",9,867]
[" A26.06.081.002 Определение антител класса М (IgM) к токсоплазме (Toxoplasma gondii) в крови  ",10,807]
[" A12.06.065 Исследование уровня тиреотропного гормона (ТТГ) в крови  ",11,485]
[" A09.05.063 Исследование уровня свободного тироксина (СТ4) в крови  ",12,489]
[" A09.05.064 Исследование уровня общего тироксина (Т4) в крови  ",13,540]
[" A09.05.061 Исследование уровня свободного трийодтиронина (СТ3) в крови  ",14,555]
[" A09.05.060 Исследование уровня общего трийодтиронина (Т3) в крови  ",15,523]
[" A12.06.045 Определение содержания антител к тиреопероксидазе в крови  ",16,612]
[" A09.05.135 Исследование уровня общего кортизола в сыворотке крови   ",17,573]
[" A09.05.132 Исследование уровня фолликулостимулирующего гормона в сыворотке крови  ",18,595]
[" A09.05.131 Исследование уровня лютеинизирующего гормона в сыворотке крови  ",19,541]
[" A09.05.153 Исследование уровня прогестерона в  крови  ",20,672]
[" A09.05.087 Исследование уровня пролактина в крови  ",21,640]
[" А09.05.078 Исследование уровня общего тестостерона в крови  ",22,626]
[" A09.05.154 Исследование уровня общего эстрадиола в крови  ",23,848]
[" А26.06.029.002 Определение антител класса G (IgG) к капсидному антигену (VCA) вируса Эпштейна-Барр (Epstein-Barr virus) в крови  ",24,931]
[" А26.06.030 Определение антител класса G (IgG) к ранним белкам антигену (ЕA) вируса Эпштейна-Барр (Epstein-Barr virus) в крови  ",25,930]
[" А26.06.031 Определение антител класса G (IgG) к ядерному антигену (NA) вируса Эпштейна-Барр (Epstein-Barr virus) в крови  ",26,921]
[" А26.06.029.001 Определение антител класса М (IgМ) к капсидному антигену (VCA) вируса Эпштейна-Барр (Epstein-Barr virus) в крови  ",27,940]
[" А09.05.209 Исследование уровня прокальцитонина в крови  ",28,868]
[" А09.05.023 Исследование уровня глюкозы в крови  ",29,210]
[" А09.05.010 Исследование уровня общего белка в крови  ",30,211]
[" А09.05.011 Исследование уровня альбумина в крови  ",31,212]
[" А09.05.017 Исследование уровня мочевины в крови  ",32,236]
[" А09.05.019 Исследование уровня креатинина в крови ",33,212]
[" А09.05.026 Исследование уровня холестерина в крови  ",34,214]
[" А09.05.022 Исследование уровня свободного и связанного билирубина в крови  ",35,322]
[" А09.05.042 Определение активности аланинаминотрансферазы в крови  ",36,262]
[" А09.05.041 Определение активности аспартатаминотрансферазы в крови  ",37,262]
[" А09.05.046 Определение активности щелочной фосфатазы в крови  ",38,284]
[" А09.05.045 Определение активности амилазы в крови  ",39,280]
[" А09.05.044 Определение активности гамма-глютамилтрансферазы в крови  ",40,333]
[" А09.05.039 Определение активности лактатдегидрогеназы в крови  ",41,291]
[" A09.05.025 Исследование уровня триглицеридов в крови  ",42,269]
[" A09.05.043 Определение активности креатинкиназы в крови  ",43,276]
[" А09.05.027 Исследование уровня липопротеинов в крови  ",44,407]
[" А09.05.127 Исследование уровня общего магния в сыворотке крови  ",45,150]
[" А09.05.031 Исследование уровня калия в крови  ",46,214]
[" А09.05.030 Исследование уровня натрия в крови  ",47,140]
[" А09.05.034 Исследование уровня хлоридов в крови  ",48,207]
[" А09.05.032 Исследование уровня общего кальция в крови  ",49,184]
[" А09.05.033 Исследование уровня неорганического фосфора в крови  ",50,248]
[" А09.05.007 Исследование уровня железа сыворотки крови  ",51,456]
[" А09.05.009 Исследование уровня С-реактивного белка в сыворотке крови  ",52,442]
[" A12.06.019 Определение содержания ревматоидного фактора в крови ",53,577]
[" A12.06.015 Определение антистрептолизина-О в сыворотке крови  ",54,398]
[" А09.05.018 Исследование уровня мочевой кислоты в крови  ",55,320]
[" А09.05.083 Исследование уровня гликированного гемоглобина в крови  ",56,838]
[" A09.28.003.001 Определение альбумина в моче  ",57,395]
[" А09.28.012 Исследование уровня кальция в моче  ",58,337]
[" А09.28.026 Исследование уровня фосфора в моче  ",59,340]
[" A09.28.010  Исследование уровня мочевой кислоты в моче  ",60,352]
[" А09.28.027 Определение активности альфа-амилазы в моче  ",61,362]
[" A09.28.006 Исследование уровня креатинина в моче  ",62,345]
[" А09.23.004 Исследование уровня белка в спинномозговой жидкости  ",63,399]
["  А09.23.003 Исследование уровня глюкозы в спинномозговой жидкости ",64,313]
[" А09.23.012 Исследование уровня хлоридов в спинномозговой жидкости  ",65,373]
[" B03.005.006 Коагулограмма (ориентировочное исследование системы гемостаза)  ",66,975]
[" А12.05.027 Определение протромбинового (тромбопластинового) времени в крови или в плазме  ",67,264]
[" A12.05.039 Активированное частичное тромбопластиновое время  ",68,450]
[" A09.05.050 Исследование уровня фибриногена в крови  ",69,260]
[" A12.05.017 Исследование агрегации тромбоцитов  ",70,512]
[" A12.05.017 Исследование агрегации тромбоцитов  ",72,842]
[" A12.05.017 Исследование агрегации тромбоцитов  ",73,785]
[" A12.05.017 Исследование агрегации тромбоцитов  ",74,573]
[" A09.05.051.001 Определение концентрации Д-димера в крови  ",75,352]
[null,76]
[" B03.016.002 Общий (клинический) анализ крови  ",77,245]
[" А12.05.120 Исследование уровня тромбоцитов в крови  ",78,587]
[" А12.05.054 Исследование адгезии тромбоцитов  ",79,1167]
[" А12.05.122 Исследование уровня ретикулоцитов в крови  ",80,408]
[" A12.05.015 Исследование времени кровотечения  ",81,171]
[" A12.05.002 Исследование осмотической резистентности эритроцитов  ",82,1143]
[" A12.23.004 Микроскопическое исследование спинномозговой жидкости, подсчет клеток в счетной камере (определение цитоза)  ",83,447]
[" B03.016.003 Общий (клинический) анализ крови развернутый  ",84,505]
[" A12.05.001 Исследование скорости оседания эритроцитов  ",85,154]
[" Клинические анализы ",86]
[" A26.05.009 Микроскопическое исследование \"толстой капли\" и \"тонкого\" мазка крови на малярийные плазмодии  ",87,602]
[" В03.016.006 Общий (клинический) анализ мочи  ",88,327]
[" А09.28.015.001 Обнаружение кетоновых тел в моче экспресс-методом   ",89,102]
["  В03.016.015 Исследование мочи методом Зимницкого ",90,269]
[" В03.016.014 Исследование мочи методом Нечипоренко  ",91,456]
[" А09.28.003.002 Определение количества белка в суточной моче  ",92,309]
[" A26.19.010 Микроскопическое исследование кала на яйца и личинки гельминтов  ",93,642]
[" A26.01.017 Микроскопическое исследование отпечатков с поверхности кожи перианальных складок на яйца остриц (Enterobius vermicularis)  ",94,206]
[" В03.016.010 Копрологическое исследование  ",95,203]
[" A26.19.011 Микроскопическое исследование кала на простейшие  ",96,175]
[" А09.19.001 Исследование кала на скрытую кровь  ",97,137]
[" А12.05.121 Дифференцированный подсчет лейкоцитов (лейкоцитарная формула)  ",98,362]
[" А12.20.001 Микроскопическое исследование влагалищных мазков  ",99,396]
[" A08.20.017 Цитологическое исследование микропрепарата шейки матки  ",100,632]
[" A09.28.007 Обнаружение желчных пигментов в моче  ",101,108]
[" А09.28.005 Обнаружение гемоглобина в моче  ",102,114]
[null,103]
[" В01.002.001 Прием (осмотр, консультация) врача аллерголога-иммунолога первичный  ",104,1269]
[" В01.037.001 Прием (осмотр, консультация) врача- пульмонолога первичный  ",105,1269]
[" В01.004.001 Прием (осмотр, консультация) врача-гастроэнтеролога первичный  ",106,1269]
[" В01.008.001 Прием (осмотр, консультация) врача-дерматовенеролога первичный  ",107,1269]
[" В01.025.001 Прием (осмотр, консультация) врача-нефролога первичный  ",108,1269]
[" В01.058.003 Консультация врача-детского-эндокринолога  ",109,1269]
[" В01.053.003 Прием (осмотр, консультация) врача-детского уролога-андролога первичный  ",110,1687]
[" В01.010.001 Прием (осмотр, консультация) врача-детского-хирурга первичный  ",111,1687]
[" В01.068.001 Консультация врача-челюстно-лицевого хирурга  ",112,1687]
[" В01.028.001 Прием (осмотр, консультация) врача-оториноларинголога первичный  ",113,1687]
[" В01.001.001 Прием (осмотр, консультация) врача-акушера-гинеколога  первичный  ",114,1687]
[" В01.050.001Прием (осмотр, консультация) врача-травматолога-ортопеда  первичный  ",115,1654]
[" В01.024.001 Консультация врача-нейрохирурга  ",116,1654]
[" В01.023.001 Прием (осмотр, консультация) врача-невролога первичный  ",117,1654]
[" В01.031.001 Прием (осмотр, консультация) врача-педиатра первичный  ",118,1654]
[" В01.015.003 Консультация врача-детского-кардиолога  ",119,1654]
["  В01.040.001 Консультация врача-ревматолога ",120,1654]
[" В01.029.001 Прием (осмотр, консультация) врача-офтальмолога  ",121,1654]
[" В01.005.001 Консультация врача-гематолога  ",122,1654]
[" В01.046.001 Консультация врача-сурдолога-оториноларинголога  ",123,1654]
[null,124]
[" A06.12.012.001 Артериально-стимулированный венозный забор крови  ",125,190]
[null,126]
[" A06.16.001.002 Рентгеноскопия пищевода с контрастированием  ",127,1292]
[" A06.16.007 Рентгеноскопия желудка и двенадцатиперстной кишки  ",128,1292]
[" A06.18.001 Ирригоскопия  ",129,1292]
[null,130]
[" A06.30.002.001 Описание и интерпретация компьютерных томограмм  ",131,1413]
["  A06.30.002.002 Описание и интерпретация магнитно-резонансных томограмм  ",132,1413]
[" A06.30.002 Описание и интерпретация рентгенографических изображений  ",133,435]
[null,134]
[" A06.03.013 Рентгенография грудного отдела позвоночника  ",135,875]
["  A06.03.014 Рентгенография грудного и поясничного отдела позвоночника ",136,875]
[" A06.03.015 Рентгенография поясничного отдела позвоночника  ",137,875]
["  A06.03.017 Рентгенография крестца и копчика ",138,875]
[" A06.03.018 Рентгенография позвоночника, специальные исследования и проекции  ",139,875]
["  A06.03.005 Рентгенография всего черепа, в одной или более проекциях ",140,705]
[" A06.03.001 Рентгенография черепа тангенциальная  ",141,705]
[" A06.03.007 Рентгенография первого и второго шейного позвонка  ",142,705]
[" A06.03.009 Рентгенография зубовидного отростка (второго шейного позвонка)  ",143,705]
[" A06.03.010 Рентгенография шейного отдела позвоночника  ",144,705]
[" A06.03.011 Рентгенография шейно-дорсального отдела позвоночника  ",145,705]
[" A06.03.021 Рентгенография верхней конечности  ",146,705]
[" A06.03.022 Рентгенография ключицы  ",147,705]
[" A06.03.023 Рентгенография ребра(ер)  ",148,705]
[" A06.03.024 Рентгенография грудины  ",149,705]
[" A06.03.026 Рентгенография лопатки  ",150,705]
[" A06.03.027 Рентгенография головки плечевой кости  ",151,705]
[" A06.03.028 Рентгенография плечевой кости  ",152,705]
[" A06.03.029 Рентгенография локтевой кости и лучевой кости  ",153,705]
[" A06.03.036 Рентгенография нижней конечности  ",154,705]
[" A06.03.037 Рентгенография подвздошной кости  ",155,705]
[" A06.03.038 Рентгенография седалищной кости  ",156,705]
[" A06.03.040 Рентгенография лонного сочленения  ",157,705]
[" A06.03.041 Рентгенография таза  ",158,705]
["  A06.03.042 Рентгенография головки и шейки бедренной кости ",159,705]
[" A06.03.042 Рентгенография бедренной кости  ",160,705]
[" A06.03.044 Рентгенография диафиза бедренной кости  ",161,705]
[" A06.03.045 Рентгенография надколенника  ",162,705]
[" A06.03.046 Рентгенография большой берцовой и малой берцовой костей  ",163,705]
[" A06.03.047 Рентгенография диафиза большой берцовой и малой берцовой костей  ",164,705]
[" A06.03.048 Рентгенография лодыжки  ",165,705]
[" A06.03.056 Рентгенография костей лицевого скелета  ",166,705]
[" A06.03.060 Рентгенография черепа в прямой проекции  ",167,705]
[" A06.04.002 Рентгенография межпозвоночных сочленений  ",168,705]
[" A06.04.003 Рентгенография локтевого сустава  ",169,705]
[" A06.04.004 Рентгенография лучезапястного сустава  ",170,705]
[" A06.04.005 Рентгенография коленного сустава  ",171,705]
[" A06.04.010 Рентгенография плечевого сустава  ",172,705]
[" A06.04.011 Рентгенография тазобедренного сустава  ",173,705]
[" A06.04.012 Рентгенография голеностопного сустава  ",174,705]
[" A06.04.013 Рентгенография акромиально-ключичного сустава  ",175,705]
["  A06.04.014 Рентгенография грудино-ключичного сочленения ",176,705]
[" A06.09.007.001 Прицельная рентгенография органов грудной клетки  ",177,705]
[" A06.09.007.002 Рентгенография легких цифровая  ",178,705]
[" A06.16.009 Рентгенография желудочно-кишечная  ",179,705]
[" A06.17.002 Рентгеноконтроль прохождения контраста по желудку, тонкой и ободочной кишке  ",180,705]
[" A06.18.002 Рентгеноконтроль прохождения контраста по толстому кишечнику  ",181,705]
[" A06.19.001 Рентгенография нижней части брюшной полости  ",182,705]
["  A06.30.004 Обзорный снимок брюшной полости и органов малого таза ",183,705]
[" A06.03.030 Рентгенография запястья  ",184,504]
[" A06.03.031 Рентгенография пясти  ",185,504]
[" A06.03.032 Рентгенография кисти   ",186,504]
[" A06.03.033 Рентгенография фаланг  пальцев кисти  ",187,504]
[" A06.03.034 Рентгенография пальцев фаланговых костей кисти  ",188,504]
[" A06.03.035 Рентгенография   l пальца руки  ",189,504]
[" A06.03.049 Рентгенография предплюсны  ",190,504]
[" A06.03.050 Рентгенография пяточной кости  ",191,504]
[" A06.03.051 Рентгенография плюсны и фаланг  пальцев стопы  ",192,504]
[" A06.03.052 Рентгенография стопы в одной проекции  ",193,504]
["  A06.03.054 Рентгенография  фаланг пальцев ноги ",194,504]
[" A06.03.055 Рентгенография  l пальца стопы  ",195,504]
[null,196]
[" A06.03.013 Рентгенография грудного отдела позвоночника  ",197,1103]
[" A06.03.014 Рентгенография грудного и поясничного отдела позвоночника  ",198,1103]
[" A06.03.015 Рентгенография поясничного отдела позвоночника  ",199,1103]
[" A06.03.017 Рентгенография крестца и копчика  ",200,1103]
[" A06.03.018 Рентгенография позвоночника, специальные исследования и проекции  ",201,1103]
[" A06.03.005 Рентгенография всего черепа,в одной или более проекциях  ",202,934]
[" A06.03.001 Рентгенография черепа тангенциальная   ",203,934]
["  A06.03.007 Рентгенография первого и второго шейного позвонка ",204,934]
[" A06.03.009 Рентгенография зубовидного отростка (второго шейного позвонка)  ",205,934]
[" A06.03.010 Рентгенография шейного отдела позвоночника  ",206,934]
[" A06.03.011 Рентгенография шейно-дорсального отдела позвоночника  ",207,934]
[" A06.03.021 Рентгенография верхней конечности  ",208,934]
[" A06.03.022 Рентгенография ключицы  ",209,934]
["  A06.03.023 Рентгенография ребра(ер) ",210,934]
[" A06.03.024 Рентгенография грудины  ",211,934]
[" A06.03.026 Рентгенография лопатки  ",212,934]
[" A06.03.027 Рентгенография головки плечевой кости  ",213,934]
["  A06.03.028 Рентгенография плечевой кости ",214,934]
[" A06.03.029 Рентгенография локтевой кости и лучевой кости  ",215,934]
[" A06.03.036 Рентгенография нижней конечности  ",216,934]
[" A06.03.037 Рентгенография подвздошной кости  ",217,934]
[" A06.03.038 Рентгенография седалищной кости  ",218,934]
[" A06.03.040 Рентгенография лонного сочленения  ",219,934]
[" A06.03.041 Рентгенография всего таза  ",220,934]
[" A06.03.042 Рентгенография головки и шейки бедренной кости  ",221,934]
[" A06.03.043 Рентгенография бедренной кости  ",222,934]
["   A06.03.044 Рентгенография диафиза бедренной кости ",223,934]
[" A06.03.045 Рентгенография надколенника  ",224,934]
[" A06.03.046 Рентгенография большой берцовой и малой берцовой костей  ",225,934]
[" A06.03.047 Рентгенография диафиза большой берцовой и малой берцовой костей  ",226,934]
["  A06.03.048 Рентгенография лодыжки ",227,934]
[" Рентгенография костей лицевого скелета  ",228,934]
[" A06.03.060 Рентгенография черепа в прямой проекции   ",229,934]
["  A06.04.002 Рентгенография межпозвоночных сочленений ",230,934]
[" A06.04.003 Рентгенография локтевого сустава  ",231,934]
[" A06.04.004 Рентгенография лучезапястного сустава  ",232,934]
[" A06.04.005 Рентгенография коленного сустава  ",233,934]
[" A06.04.010 Рентгенография плечевого сустава  ",234,934]
[" A06.04.011 Рентгенография бедренного сустава  ",235,934]
[" A06.04.012 Рентгенография голеностопного сустава  ",236,934]
[" A06.04.013 Рентгенография акромиально-ключичного сустава  ",237,934]
["  A06.04.014 Рентгенография грудино-ключичного сочленения ",238,934]
[" A06.09.007.001 Прицельная рентгенография органов грудной клетки  ",239,934]
["  A06.09.007.002 Рентгенография легких цифровая ",240,934]
[" A06.16.009 Рентгенография желудочно-кишечная  ",241,934]
[" A06.17.002 Рентгеноконтроль прохождения контраста по желудку, тонкой и ободочной кишке  ",242,934]
[" A06.18.002 Рентгеноконтроль прохождения контраста по толстому кишечнику  ",243,934]
["  A06.19.001 Рентгенография нижней части брюшной полости ",244,934]
[" A06.30.004 Обзорный снимок брюшной полости и органов малого таза  ",245,934]
[" A06.03.030 Рентгенография запястья  ",246,732]
[" A06.03.031 Рентгенография пясти  ",247,732]
["  A06.03.032 Рентгенография кисти руки ",248,732]
[" A06.03.033 Рентгенография фаланг кисти  ",249,732]
[" A06.03.034 Рентгенография пальцев руки  ",250,732]
[" A06.03.035 Рентгенография l пальца кисти  ",251,732]
[" A06.03.049 Рентгенография предплюсны  ",252,732]
["  A06.03.050 Рентгенография пяточной кости ",253,732]
[" A06.03.051 Рентгенография плюсны и фаланг  пальцев стопы  ",254,732]
[" A06.03.053 Рентгенография стопы в двух проекциях  ",255,732]
[" A06.03.054 Рентгенография пальцев ноги  ",256,732]
[" A06.03.055 Рентгенография l пальца стопы  ",257,732]
[null,258]
[" A06.03.053 Рентгенография стопы в двух проекциях  ",259,1735]
[" А06.03.053.001 Рентгенография стопы с функциональной нагрузкой  ",260,1735]
[" A06.04.001 Рентгенография височно-нижнечелюстного сустава  ",261,1735]
[" A06.07.009 Рентгенография нижней челюсти в боковой проекции  ",262,1735]
[" A06.26.002 Рентгенография глазного отверстия и канала зрительного нерва  ",263,1735]
["  А06.03.041 Рентгенография таза ",264,1735]
[" А06.03.018 Рентгенография позвоночника, специальные исследования и проекции                                                                                                              ",265,1735]
[" A06.08.003 Рентгенография придаточных пазух носа  ",266,633]
[" A06.26.001 Рентгенография глазницы  ",267,633]
[null,268]
[" А06.03.002 Компьютерная томография лицевого отдела черепа  ",269,1897]
[" А06.03.002.004 Компьютерно-томографическое перфузионное исследование лицевого отдела черепа  ",270,1897]
[" А06.03.021.001 Компьютерная томография верхней конечности  ",271,1897]
[" А06.03.036.001 Компьютерная томография нижней конечности  ",272,1897]
["  А06.03.058 Компьютерная томография позвоночника (один отдел) ",273,1897]
[" А06.03.058.001 Компьютерная томография позвоночника с мультипланарной и трехмерной реконструкцией  ",274,1897]
[" А06.03.062 Компьютерная томография кости  ",275,1897]
["  А06.04.017 Компьютерная томография сустава ",276,1897]
[" А06.08.007 Компьютерная томография придаточных пазух носа, гортани  ",277,1897]
[" А06.08.007.001 Спиральная компьютерная томография гортани  ",278,1897]
[" А06.08.007.003 Спиральная компьютерная томография придаточных пазух носа  ",279,1897]
[" А06.09.005 Компьютерная томография органов грудной полости  ",280,1897]
[" А06.20.002 Компьютерная томография органов малого таза у женщин  ",281,1897]
[" А06.20.002.001 Спиральная компьютерная томография органов малого таза у женщин  ",282,1897]
[" А06.21.003 Компьютерная томография органов таза у мужчин  ",283,1897]
[" А06.25.003 Компьютерная томография височной кости  ",284,1897]
[" А06.26.006 Компьютерная томография глазницы  ",285,1897]
[" А06.28.009 Компьютерная томография почек и надпочечников  ",286,1897]
[" А06.28.009.002 Спиральная компьютерная томография почек и надпочечников  ",287,1897]
[" А06.30.005 Компьютерная томография органов брюшной полости  ",288,2609]
[" А06.30.005.001 Компьютерная томография органов брюшной полости и забрюшинного пространства  ",289,2609]
[" А06.30.007 Компьютерная томография забрюшинного пространства  ",290,2609]
[null,291]
[" А06.03.002 Компьютерная томография лицевого отдела черепа  ",292,4481]
[" А06.03.002.004 Компьютерно-томографическое перфузионное исследование лицевого отдела черепа  ",293,4481]
[" А06.03.021.001 Компьютерная томография верхней конечности  ",294,4481]
[" А06.03.036.001 Компьютерная томография нижней конечности  ",295,4481]
["  А06.03.058 Компьютерная томография позвоночника (один отдел) ",296,4481]
[" А06.03.058.001 Компьютерная томография позвоночника с мультипланарной и трехмерной реконструкцией  ",297,4481]
[" А06.03.062 Компьютерная томография кости  ",298,4481]
["  А06.04.017 Компьютерная томография сустава ",299,4481]
[" А06.08.007 Компьютерная томография придаточных пазух носа, гортани  ",300,4481]
[" А06.08.007.001 Спиральная компьютерная томография гортани  ",301,4481]
[" А06.08.007.003 Спиральная компьютерная томография придаточных пазух носа  ",302,4481]
[" А06.09.005 Компьютерная томография органов грудной полости  ",303,4481]
[" А06.20.002 Компьютерная томография органов малого таза у женщин  ",304,4481]
[" А06.20.002.001 Спиральная компьютерная томография органов малого таза у женщин  ",305,4481]
[" А06.21.003 Компьютерная томография органов таза у мужчин  ",306,4481]
[" А06.25.003 Компьютерная томография височной кости  ",307,4481]
[" А06.26.006 Компьютерная томография глазницы  ",308,4481]
[" А06.28.009 Компьютерная томография почек и надпочечников  ",309,4481]
[" А06.28.009.002 Спиральная компьютерная томография почек и надпочечников  ",310,4481]
[" А06.03.021.002 Компьютерная томография верхней конечности с внутривенным болюсным контрастированием  ",311,5430]
[" А06.03.021.003 Компьютерная томография верхней конечности с внутривенным болюсным контрастированием, мультипланарной и трехмерной реконструкцией  ",312,5430]
[null,313]
[null,314]
[" Ультравист, р-р д/ин. 370 мг йода/мл, 30 мл,   ",315,784]
[" Ультравист, р-р д/ин. 370 мг йода/мл, фл. 50 мл ",316,1447]
[" Ультравист, р-р д/ин. 300 мг йода/мл, фл. 100 мл ",317,2148]
[null,318]
[" A05.01.002 Магнитно-резонансная томография мягких тканей  ",319,3533]
[" A05.02.002 Магнитно-резонансная томография мышечной системы  ",320,3533]
[" A05.03.001 Магнитно-резонансная томография костной ткани (одна область)   ",321,3533]
["  А05.03.002 Магнитно-резонансная томография позвоночника (один отдел) ",322,3533]
[" А05.04.001 Магнитно-резонансная томография суставов (один сустав)  ",323,3533]
[" А05.08.001 Магнитно-резонансная томография околоносовых пазух  ",324,3533]
[" А05.08.002 Магнитно-резонансная томография гортаноглотки  ",325,3533]
[" А05.11.001 Магнитно-резонансная томография средостения  ",326,3533]
[" А05.15.001 Магнитно-резонансная томография поджелудочной железы  ",327,3533]
[" А05.15.002 Магнитно-резонансная холангиопанкреатография  ",328,3533]
[" А05.23.009 Магнитно-резонансная томография головного мозга  ",329,3533]
[" А05.23.009.004 Магнитно-резонансная диффузия головного мозга  ",330,3533]
[" А05.23.009.010 Магнитно-резонансная томография спинного мозга (один отдел)  ",331,3533]
[" А05.26.008 Магнитно-резонансная томография глазницы  ",332,3533]
["  А05.28.002 Магнитно-резонансная томография почек ",333,3533]
["  А05.30.004 Магнитно-резонансная томография органов малого таза ",334,3533]
[" А05.30.005 Магнитно-резонансная томография органов брюшной полости  ",335,3533]
[" А05.30.007 Магнитно-резонансная томография забрюшинного пространства  ",336,3533]
[" А05.30.010 Магнитно-резонансная томография мягких тканей головы  ",337,3533]
[" A05.30.011 Магнитно-резонансная томография верхней конечности  ",338,3533]
[" A05.30.012 Магнитно-резонансная томография нижней конечности  ",339,3533]
[null,340]
[" A05.01.002 Магнитно-резонансная томография мягких тканей  ",341,4534]
[" A05.02.002 Магнитно-резонансная томография мышечной системы  ",342,4534]
[" A05.03.001 Магнитно-резонансная томография костной ткани (одна область)   ",343,4534]
["  А05.03.002 Магнитно-резонансная томография позвоночника (один отдел) ",344,4534]
[" А05.04.001 Магнитно-резонансная томография суставов (один сустав)  ",345,4534]
[" А05.08.001 Магнитно-резонансная томография околоносовых пазух  ",346,4534]
[" А05.08.002 Магнитно-резонансная томография гортаноглотки  ",347,4534]
[" А05.11.001 Магнитно-резонансная томография средостения  ",348,4534]
[" А05.15.001 Магнитно-резонансная томография поджелудочной железы  ",349,4534]
[" А05.15.002 Магнитно-резонансная холангиопанкреатография  ",350,4534]
[" А05.23.009 Магнитно-резонансная томография головного мозга  ",351,4534]
[" А05.23.009.010 Магнитно-резонансная томография спинного мозга (один отдел)  ",352,4534]
[" А05.23.009.005 Магнитно-резонансная ликворография головного мозга  ",353,4534]
[" А05.23.009.014 Магнитно-резонансная ликворография спинного мозга (один отдел)  ",354,4534]
[" А05.26.008 Магнитно-резонансная томография глазницы  ",355,4534]
[" А05.28.002 Магнитно-резонансная томография почек  ",356,4534]
[" А05.30.004 Магнитно-резонансная томография органов малого таза  ",357,4534]
[" А05.30.005 Магнитно-резонансная томография органов брюшной полости  ",358,4534]
["  А05.30.007 Магнитно-резонансная томография забрюшинного пространства ",359,4534]
[" А05.30.010 Магнитно-резонансная томография мягких тканей головы  ",360,4534]
[" A05.30.010.001 Магнитно-резонансная томография мягких тканей головы с внутривенным контрастированием  ",361,4534]
[" A05.30.011 Магнитно-резонансная томография верхней конечности  ",362,4534]
[" A05.30.012 Магнитно-резонансная томография нижней конечности  ",363,4534]
[null,364]
[null,365]
[" Гадовист, р-р для в/в введ. 1 ммоль/мл, шпр. 5 мл ",366,2189]
[" Гадовист, р-р для в/в введ. 1 ммоль/мл, шпр. 7,5 мл ",367,3283]
[" Гадовист, р-р для в/в введ. 1 ммоль/мл, фл. 15 мл ",368,6214]
[null,369]
[" A04.22.001 УЗИ щитовидной железы и паращитовидных желез  ",370,651]
[" A04.28.003 УЗИ мочевого пузыря  ",371,651]
[" A04.28.002.005 УЗИ мочевого пузыря с определением остаточной мочи  ",372,651]
[" A04.28.002.001 УЗИ вилочковой железы  ",373,651]
[" A04.28.002.001 УЗИ печени  ",374,816]
[" A04.14.002 УЗИ желчного пузыря с определением его сократимости  ",375,816]
["  A04.01.001 УЗИ мягких тканей (одна анатомическая зона) ",376,816]
[" A04.28.002.001 УЗИ  почек  ",377,816]
[" A04.09.001 УЗИ плевральной полости  ",378,816]
[" A04.15.001 УЗИ поджелудочной железы  ",379,816]
[" A04.06.001 УЗИ селезенки  ",380,816]
[" A04.07.002 УЗИ  слюнных желез  ",381,816]
[" A04.06.002 УЗИ лимфатических узлов (одна анатомическая зона)  ",382,816]
[" A04.28.001 УЗИ почек и надпочечников  ",383,816]
[" A04.28.003 УЗИ органов мошонки  ",384,816]
[" A04.22.002 УЗИ надпочечников  ",385,816]
[" A04.16.001 УЗИ брюшной полости (комплексное)  ",386,816]
[" A04.28.002.002 УЗИ  мочевыводящих  путей  ",387,816]
[" A04.20.002.002 УЗИ молочных желез с допплеровским исследованием  ",388,1140]
[" A04.26.003 Ультразвуковое сканирование глазницы  ",389,1465]
[" A04.12.008 Дуплексное сканирование сосудов мошонки и полового члена  ",390,1465]
[" A04.20.001 УЗИ матки и придатков трансабдоминальное  ",391,1465]
[" A04.23.001 Нейросонография  ",392,1465]
["  A04.04.001 УЗИ сустава ",393,1465]
[" A04.04.001.001 УЗИ тазобедренного сустава  ",394,2114]
[" A04.14.002.001 УЗИ желчного пузыря с определением его сократимости  ",395,2138]
[" A04.16.001 УЗИ органов брюшной полости (комплексное)  ",396,2138]
["  A04.10.002 Эхокардиография ",397,2138]
[null,398]
[" А03.16.001 Эзофагогастродуоденоскопия  ",399,2804]
[" А03.18.001.001 Видеоколоноскопия  ",400,3752]
[null,401]
[" A20.30.028 ГБО при синдроме длительного сдавления  ",402,1226]
[" A20.30.028 ГБО при синдроме длительного сдавления  ",403,2310]
[" A20.15.001 ГБО при заболеваниях поджелудочной железы  ",404,1226]
[" A20.15.001 ГБО при заболеваниях поджелудочной железы  ",405,2310]
[" A20.18.002  ГБО при заболеваниях толстой кишки  ",406,1226]
[" A20.18.002  ГБО при заболеваниях толстой кишки  ",407,2310]
[" A20.24.005 ГБО при заболеваниях периферической нервной системы  ",408,1226]
[" A20.24.005 ГБО при заболеваниях периферической нервной системы  ",409,2310]
[" A20.24.005.001 ГБО при заболеваниях центральной нервной системы  ",410,1226]
[" A20.24.005.001 ГБО при заболеваниях центральной нервной системы  ",411,2310]
[" A20.25.001 ГБО при заболеваниях уха  ",412,1226]
[" A20.25.001 ГБО при заболеваниях уха  ",413,2310]
[" A20.26.001  Гипо-, нормо- и ГБО при заболеваниях органа зрения  ",414,1226]
[" A20.26.001  Гипо-, нормо- и ГБО при заболеваниях органа зрения  ",415,2310]
[" A20.01.002 Оксигенотерапия при заболеваниях кожи  ",416,1226]
[" A20.01.002 Оксигенотерапия при заболеваниях кожи  ",417,2310]
[" А20.01.002 Оксигенотерапия (гипер-, нормо- или гипобарическая) при заболеваниях легких  ",418,1226]
[" А20.01.002 Оксигенотерапия (гипер-, нормо- или гипобарическая) при заболеваниях легких  ",419,2310]
[" A20.10.001 Оксигенотерапия (гипер- и нормобарическая) при заболеваниях сердца  ",420,1226]
[" A20.10.001 Оксигенотерапия (гипер- и нормобарическая) при заболеваниях сердца  ",421,2310]
[" A20.16.004 ГБО при заболеваниях желудка  ",422,1226]
[" A20.16.004 ГБО при заболеваниях желудка  ",423,2310]
[null,424]
[" A05.10.004 Расшифровка, описание и интерпретация электрокардиографических данных  ",425,661]
[" A05.10.001 Регистрация электрической активности проводящей системы сердца  ",426,522]
["  A12.10.001 Электрокардиография с физической нагрузкой  ",427,1366]
[" A12.09.001 Исследование неспровоцированных дыхательных объемов и потоков  ",428,731]
[" А12.09.002.001 Исследование дыхательных объемов с применением лекарственых препаратов ",429,681]
[" A05.23.001.000 Электроэнцефалография с нагрузочными пробами  ",430,2961]
[" A05.10.008 Холтеровское мониторирование сердечного ритма  ",431,2611]
[" A05.10.008 Холтеровское мониторирование сердечного ритма  (свыше 24 часа ) ",432,2734]
[" А04.23.002 Эхоэнцефалография  ",433,958]
[" A05.02.001 Электромиография игольчатая (одна мышца)  ",434,2568]
[" A05.02.001.005 Электромиография стимуляционная локтевого нерва  ",435,1741]
[" А05.02.001.006 Электромиография стимуляционная лучевого нерва  ",436,1203]
[null,437]
[" A17.26.003 Электростимуляция зрительного нерва  ",438,850]
[" А17.01.007 Дарсонвализация кожи  ",439,322]
[" A20.30.018 Спелеовоздействие  ",440,261]
["  A17.30.034 Ультрафонофорез лекарственный ",441,334]
[" A17.29.002 Электросон  ",442,523]
[" A17.24.009 Воздействие магнитными полями при заболеваниях периферической нервной системы  ",443,275]
[" A17.30.019.001 Воздействие магнитными полями при заболеваниях мышц  ",444,275]
[" А17.30.017 Воздействие электрическим полем ультравысокой частоты (ЭП УВЧ)  ",445,215]
[" А22.30.003 Воздействие коротким ультрафиолетовым излучением  ",446,280]
[" А17.13.001 Электрофорез лекарственных препаратов при нарушениях микроциркуляции  ",447,382]
[" A17.12.001 Электрофорез при заболеваниях крупных кровеносных сосудов  ",448,382]
[" A17.14.001 Электрофорез лекарственных препаратов при заболеваниях печени и желчевыводящих путей  ",449,382]
[" A17.20.002 Электрофорез лекарственных препаратов при заболеваниях женских половых органов  ",450,382]
[" A17.26.001 Электрофорез лекарственных препаратов при заболеваниях органа зрения  ",451,382]
[" A17.28.001 Электрофорез лекарственных препаратов при заболеваниях почек  ",452,382]
[" A17.24.005 Электрофорез лекарственных препаратов при заболеваниях периферической нервной системы  ",453,382]
[" A17.25.001 Внутриушной электрофорез лекарственных препаратов при заболеваниях органа слуха  ",454,382]
[" A22.01.006 Ультрафиолетовое облучение кожи  ",455,189]
[" А17.30.018 Воздействие электромагнитным излучением дециметрового диапазона (ДМВ)  ",456,280]
["  А20.03.003 Воздействие озокеритом при заболеваниях костной системы ",457,494]
[" A20.09.004 Воздействие парафином (озокеритом) при заболеваниях нижних дыхательных путей и легочной ткани  ",458,494]
[" A20.14.003 Воздействие парафином (озокеритом) при заболеваниях печени и желчевыводящих путей  ",459,494]
[" A20.16.003 Воздействие парафином (озокеритом) при заболеваниях пищевода, желудка, двенадцатиперстной кишки  ",460,494]
[" A20.23.002 Воздействие парафином (озокеритом) при заболеваниях центральной нервной системы  ",461,494]
[" A21.01.003.001 Массаж воротниковой области  (10 минут) ",462,201]
[" A21.01.003.001 Массаж шеи медицинский  (10 минут) ",463,201]
[" A21.01.004.002 Массаж плечевого сустава  (10 минут) ",464,201]
[" A21.01.004.003 Массаж локтевого сустава  (10 минут) ",465,201]
[" A21.01.004.00 Массаж лучезапястного сустава 4 (10 минут) ",466,201]
[" A21.01.005 Массаж волосистой части головы медицинский  (10 минут) ",467,201]
[" A21.01.009.003 Массаж коленного сустава  (10 минут) ",468,201]
[" A21.01.009.004 Массаж голеностопного сустава  (10 минут) ",469,201]
[" A21.01.009 Массаж нижней конечности медицинский  (15 минут) ",470,254]
[" A21.01.009.002 Массаж тазобедренного сустава и ягодичной области  (15 минут) ",471,254]
[" A21.01.004  Массаж верхней конечности медицинский (15 минут) ",472,254]
[" A21.03.002.001 Массаж пояснично-крестцовой области  (15 минут) ",473,254]
[" A21.14.001 Массаж при заболеваниях печени, желчного пузыря, желчевыводящих путей  (15 минут) ",474,254]
["  A21.09.002 Массаж при хронических неспецифических заболеваниях легких (20 минут) ",475,307]
[" A21.30.005 Массаж грудной клетки медицинский  (20 минут) ",476,307]
[" A21.03.007 Массаж спины медицинский  (20 минут) ",477,307]
[" A21.01.001 Общий массаж медицинский  ",478,412]
[" A21.08.002 Лечебная физкультура при заболеваниях верхних дыхательных путей  ",479,343]
[" A19.03.001 Лечебная физкультура при травме позвоночника  ",480,174]
[" A19.03.003 Лечебная физкультура при переломе костей  ",481,174]
[" A17.30.028 Аэрозольтерапия  ",482,219]
[" A17.30.004 Воздействие синусоидальными модулированными токами  ",483,731]
[null,484]
[" B01.003.004.009 Тотальная внутривенная анестезия (25 мин) ",485,4540]
[" B01.003.004.009 Тотальная внутривенная анестезия  (30 мин) ",486,5180]
[" B01.003.004.009 Тотальная внутривенная анестезия B01.003.004.009 (45 мин) ",487,6268]
[" B01.003.004.009 Тотальная внутривенная анестезия  (80 мин) ",488,8532]
[" B01.003.004.009 Тотальная внутривенная анестезия (120 мин) ",489,11026]
[" B01.003.004.009 Тотальная внутривенная анестезия  (150 мин) ",490,12655]
[" B01.003.004.009 Тотальная внутривенная анестезия  (210 мин) ",491,14828]
[" B01.003.004.009 Тотальная внутривенная анестезия  (270 мин) ",492,16781]

{"sheet":"Сертиф","index":2,"n_rows":46,"n_cols":4,"rows_kept":46,"cut":false,"hidden":false,"merged":[]}
["ФИО","Отдел","Категория","Сертификат"]
["Янина Татьяна Юрьевна","Функциональная диагностика"," ","ФГБО УВО «Кубанский государственный медицинский университет МЗ РФ «Функциональная диагностика» 0123310108083 от 04.05.2017"]
["Краснова Виктория Валерьевна","Функциональная диагностика","высшая категория от 27.02.2013","ФГБУ ДПО \"Центральная медицинская академия \"Управление по делам РФ 0377180766879 от 04.12.2017года"]
["Скороходова Виктория Игоревна","Эндоскопия","высшая от 31.05.2016","КГМУ им. Георгевского –«Эндоскопия» Серия 0182140001708 №18/550 от 08.04.2015"]
["Дмитрюк Светлана Викторовна","Рентгенология","высшая от 11.11.2010","КГМУ им. Георгевского «Рентгенология» Серия 0182180442149 №07/2009 от 29.06.2015"]
["Лукьянец Лидия Владимировна","Клиническая лабораторная диагностика","высшая от 21.12.2015","ГБОУ ВПО «Северо-Западный ГМУ им. Мечникова» Серия 0178040003520 №36235 от 20.12.2014"]
["Шевченко Людмила Михайловна","Физиотерапия","высшая  от 01.06.2011","КГМУ им. Георгевского «Физиотерапия» Серия 0182140001907 № 20/750 от 09.04.2015"]
["Тукина Анна Михайловна","Нефрология","высшая  22.02.2012","Московская ордена Ленина и Трудового Красного Знамени медицинская академия им. И.М. Сеченова Серия017704№0014180 от 30.12.2014"]
["Балич Айше Якубовна","Стоматология хирургическая","высшая категория  от 18.12.2009","Стоматология хирургическая» Московская медицинская академия им. И.М. Сеченова Федерального агентства по здравоохранению и социальному развитию г. Москва №0377240831615 от 13.12.2015"]
["Олейник Анатолий Васильевич","Травматология и ортопедия","высшая категория от 30.07.2012","1. «Травматология и ортопедия» Московский государственный институт усовершенствования врачей №0377180375980 от 16.16.2015\n2. «Организация здравоохранения и общественное здоровье» Московская ордена Ленина и ордена Трудового Красного Знамени медицинская академия им. И.М. Сеченова №0177240119189 от 09.06.2015"]
["Абросимова Елена Ивановна","Неонатология","высшая от 20.12.2015","Неонатология» ФГУ «Научно-исследовательский институт кардиологии им. В.А. Алмазова Серия 0278180135929 №908 от 01.12.2014"]
["Тарасова Лариса Анатольевна","Акушерство и гинекология","высшая категория от 14.05.2014","1. «Акушерство и гинекология» КГМУ им. С.И. Георгевского серия 0182140000881 №01/1712 от 28.05.2015\n2. «Ультразвуковая диагностика» Челябинский ГМИ № 1174180413043 от 24.09.2015\n"]
["Кошевая Людмила Павловна","Гастроэнтерология","первая категория от 31.10.2012","ФГАОУ ВО \"Крымский федеральный университет им.В.И.Вернадского\" 0182180607482 от 21.11.2017 года"]
["Калинина Лариса Анатольевна","Дерматовенерология","высшая категория от 30.036.2016","«Дерматовенерология» ГБОУ ДПО «Российская медицинская академия последипломного образования» МЗ РФ Серия 0377060103467 №2Ц-15-101237 от 17.03.2015"]
["Ветрова Вера Владимировна","Педиатрия","вторая категория от 23.05.2012","«Гастроэнтерология» КФУ им. Вернадцкого МА им. Георгевского Серия 0182180443191 №18/2878 от 17.11.15"]
["Завгородняя Светлана Брониславовна","Биолог","Первая от 21.12.2015"]
["Симонян Мария Сергеевна","Оториноларингология"," ","Российский национальный исследовательский медицинский университет им. Н.И. Пирогова серия 0177240442660 №5071 от 27.03.2015"]
["Самисова Наталья Ивановна","Пульмонология","Высшая от 05.10.2011","КГМУ им . Георгевского «Пульмонология» серия 0182180441969 №18/1829 от 09.06.2015"]
["Требушенко Светлана Юрьевна","Гематология"," ","Российская медицинская академия Последипломного образования МЗ РФ «Гематология» серия 0377060171281 №2Ц-7-114438 от 22.11.2015"]
["Ковальчук Алексей Владимирович","Стоматология хирургическая"," ","КГМУ им. С.И. Георгевского «Стоматология хирургическая» серия 0182180442815 №16.2504 от 05.10.15"]
["Синцова Ирина Васильевна","Аллергология и иммунология","высшая от 22.04.2014","«Аллергология и иммунология» Российская медицинская академия Последипломного образования МЗ РФ серия 0377060164685 №2Ц-2-107517 от 05.06.2015\n\n«Пульмонология» ГБОУ ДПО «Российская медицинская академия Последипломного образования МЗ РФ» серия 0182180441970 №18/1830 от 09.06.2015\n"]
["Блажко Татьяна Григорьевна","Детская кардиология","первая от 13.03.2013","Медицинская академия им. Георгевского серия 01820180606396 №13/966 от 02.06.2016"]
["Бунчук Марина Михайловна","Неврология"," ","КГМУ им. Георгевского серия 0182140001326 №08/1185 от 14.04.2015"]
["Онищенко Зоя Владимировна","Офтальмология"," ","КГМУ им. Георгевского «Офтальмология» серия 0182140000963 №11/1792 от 02.06.2015"]
["Муединова Эльвира Разимовна","Неврология"," ","ФГБОУ ВО \"Санкт-петербурский государственный педиатрический медицинскийуниверситет МЗ РФ 0178270049699 от 15.10.2016"]
["Новакова Владислава Владимировна","Оториноларингология"," ","2й Московский ордена Ленина Государственный медицинский институт им. Н.И. Пирогова «Оториноларингология» серия 0177240442657 №5068 от 27.03.2014\nРоссийский национальный медицинский университет им. Н.И.Пирогова «Оториноларингология» серия 0177240443246 №5068 от 27.03.2015\n"]
["Турчанинова Людмила Ивановна","Детская эндокринология"," ","Федеральный центр сердца, крови и эндокринологии им. В.А. Алмазова Федерального агентства по высокотехнологичной медицинской помощи г. Санкт-Петербург серия 0278180135656 №635 от 02.08.2014"]
["Кушнерюк Светлана Ярославовна","Офтальмология"," ","«Офтальмология» КГМУ им. С.И. Георгевского серия 0182180442921 №11/2609 от 28.10.2015"]
["Кушнир Елена Федоровна","Аллергология и иммунология"," ","ГБОУ ДПО «Российская медицинская академия последипломного образования МЗ РФ» «Аллергология и иммунология» серия 0377060167209 №2Ц-2-109976 от 05.07.2015\n\n"]
["Сердюк Светлана Александровна","Травматология и ортопедия"," ","Институт последипломного профессионального образования ФМБЦ им. А.И. Бурназяна серия 0377180151481 №1973/15 от 27.04.2015"]
["Никифоров Константин Евгеньевич","Сурдология-оториноларингология"," ","Российская академия последипломного образования МЗ РФ «Сурдология-оториноларингология»\n №0377060182105 от 10.10.2015\n"]
["Каретникова Марина Сергеевна ","Ультразвуковая диагностика"," ","Российская медицинская академия Последипломного образования (ультразвуковая диагностика) № 0377060179388 от 04.05.2016"]
["Бабенко Татьяна Владимировна","Детская урология-андрология, детская хирургия"," ","Российская медицинская академия непрерывного профессионального обучения \"Детская хирургия\" от 05.03.2018 №0377180733037; Российская медицинская академия последипломного образования \"Детская урология - андрология\" от 12.10.2015 № 0377060182525"]
["Пейливанова Ольга Викторовна","Акушерство и гинекология"," ","Негосударственное образовательное частное учреждение профессионального образования \"Высшая медицинская школа\" № 1177240786524 04.12.2015"]
["Сысоева Наталья Александровна","Педиатрия"," ","«Педиатрия» «КФУ» 0182180607012 от 30.11.2016"]
["Верменич Ксения Валериевна","Детская хирургия"," ","ФГАОУ ВО\"КФУ им. В.И. Вернадского\" 0182180507077 от 29.08.2016 года"]
["Жогова Ольга Валерьевна","«Ревматология »"," ","Первый Московский ГМУ им. И.М. Сеченова № 0177040049406 от 12.05.2016 «Ревматология»"]
["Гожик Алина Игоревна","«Гастроэнтерология»"," ","университет им. В.И. Вернадского» Медицинской академии С.И. Георгиевского; сертификат 018210607688 №18/877 от 26.12.2017"]
["Ивановский Сергей Владимирович","«Ревматология»"," ","Первый Московский ГМУ им. И.М. Сеченова № 0177040029495 от 12.05.2015 «Ревматология»"]
["Щукин Сергей Юрьевич","\"Онкология\"",null,"ФГБОУ ВО «Волгоградский государственный медицинский университет» Министерства здравоохранения Российской Федерации; свидетельство №772300331166 от 10.10.2022"]
["Воронина Екатерина Игоревна","\"Ультразвуковая диагностика\"",null,"Учебное заведение: ФГБОУ ВО \"Санкт-Петербургский государственный педиатрический медицинский университет\" Министерства здравоохранения Российской Федерации; сертификат №0178270106127 от 23.11.2019"]
["Урсина Евгения Олеговна","\"Ультразвуковая диагностика\"",null,"АНО ДПО \"АКАДЕМИЯ МЕДИЦИНСКОГО ОБРАЗОВАНИЯ\"; сертификат №1177181035808 от 22.10.2020"]
["Лацабидзе Дарья Игоревна","\"Клиническая лабораторная диагностика\"",null,"ФГБОУ ДПО \"Российская медицинская академия непрерывного профессионального образования\" Министерства здравоохранения Российской Федерации; Удостоверение о повышении квалификации: 180001966002 от 21.09.2019"]
["Мищук Ольга Владимировна","\"Детская эндокринология\"",null,"ФГБУ \"Национальный медицинский исследовательский центр им. В.А. Алмазова\" Министерства здравоохранения Российской Федерации; сертификат №0278330053037 от 18.05.2019"]
["Черненкова Арина Витальевна","\"Педиатрия\"",null,"Федеральное государственное автономное образовательное учреждение высшего образования «Крымский федеральный университет имени В.И. Вернадского»; свидетельство №772300214367 от 30.11.2020"]
["Бондарь Кристина Геннадьевна","\"Гастроэнтерология\"",null,"ФГАОУ ВО «Крымский федеральный университет имени В.И. Вернадского»; свидетельство: №2022.2716902 от 15.09.2022"]

{"sheet":"shHelp","index":3,"n_rows":1,"n_cols":1,"rows_kept":1,"cut":false,"hidden":false,"merged":[]}
["Удобный поиск в выпадающем списке .\n\nДанная надстройка предоставляет возможность вставлять значения из списков в текущую ячейку листа.\nЗапуск надстройки производится несколькими способами:\n1) Сочетанием клавиш CTRL+SHIFT+R\n2) ДаблКликом (можно отключить в настройках)\n3) Нажатием на строку меню \"Поиск в выпадающем списке\", находящейся на вкладке \"Сервис\" в 2003 Excel и на вкладке \"Надстройки\"  в  2007.\n\nФорма надстройки открывается не модально, поэтому для того что бы изменить результирующую ячейку форму можно не закрывать. Для поиска значения из списка необходимо ввести часть слова для поиска. В результирующую ячейку вставляется выбранное значение из найденных вариантов. Вставка значения в ячейку происходит при нажатии на кнопку \"Вставить в ячейку\", или по ЕНТЕР или по двойному щелчку мыши.\n\nДля выбора параметров работы надстройки, а также для управления списками воспользуйтесь кнопкой \"Настройки\".\n\nВерсия: 12.1\nАвтор: GIG_ant\nЯнварь 2012 г."]

{"sheet":"shLists","index":4,"n_rows":470,"n_cols":2,"rows_kept":470,"cut":false,"hidden":true,"merged":[]}
["Специалист","ПРАЙС"]
["Янина Татьяна Юрьевна"," A26.06.082.002 Определение антител к бледной трепонеме (Treponema pallidum) иммуноферментным методом (ИФА) в крови  "]
["Краснова Виктория Валерьевна"," A26.06.036 Определение антигена (HbsAg) вируса гепатита В (Hepatitis B virus) в крови  "]
["Скороходова Виктория Игоревна"," A26.06.041.002 Определение суммарных антител классов М и G (anti-HCV IgG и anti-HCV IgM) к вирусу гепатита С (Hepatitis С virus) в крови  "]
["Дмитрюк Светлана Викторовна"," A26.06.045.001 Определение антител класса G (IgG) к вирусу простого герпеса 1 типа (Herpes simplex virus 1) в крови             "]
["Лукьянец Лидия Владимировна"," A26.06.045.003 Определение антител класса G (IgG) к вирусу простого герпеса 2 типа (Herpes simplex virus 2) в крови   "]
["Шевченко Людмила Михайловна"," A26.06.045.003 Определение антител класса М (IgM) к вирусу простого герпеса 1 и 2 типов (Herpes simplex virus types 1, 2) в крови  "]
["Тукина Анна Михайловна"," A26.06.022.001 Определение антител класса G (IgG) к цитомегаловирусу (Cytomegalovirus) в крови  "]
["Балич Айше Якубовна"," A26.06.022.002 Определение антител класса М (IgM) к цитомегаловирусу (Cytomegalovirus) в крови  "]
["Олейник Анатолий Васильевич"," A26.06.081.001 Определение антител класса G (IgG) к токсоплазме (Toxoplasma gondii) в крови  "]
["Абросимова Елена Ивановна"," A26.06.081.002 Определение антител класса М (IgM) к токсоплазме (Toxoplasma gondii) в крови  "]
["Тарасова Лариса Анатольевна"," A12.06.065 Исследование уровня тиреотропного гормона (ТТГ) в крови  "]
["Кошевая Людмила Павловна"," A09.05.063 Исследование уровня свободного тироксина (СТ4) в крови  "]
["Калинина Лариса Анатольевна"," A09.05.064 Исследование уровня общего тироксина (Т4) в крови  "]
["Ветрова Вера Владимировна"," A09.05.061 Исследование уровня свободного трийодтиронина (СТ3) в крови  "]
["Завгородняя Светлана Брониславовна"," A09.05.060 Исследование уровня общего трийодтиронина (Т3) в крови  "]
["Симонян Мария Сергеевна"," A12.06.045 Определение содержания антител к тиреопероксидазе в крови  "]
["Самисова Наталья Ивановна"," A09.05.135 Исследование уровня общего кортизола в сыворотке крови   "]
["Требушенко Светлана Юрьевна"," A09.05.132 Исследование уровня фолликулостимулирующего гормона в сыворотке крови  "]
["Ковальчук Алексей Владимирович"," A09.05.131 Исследование уровня лютеинизирующего гормона в сыворотке крови  "]
["Синцова Ирина Васильевна"," A09.05.153 Исследование уровня прогестерона в  крови  "]
["Блажко Татьяна Григорьевна"," A09.05.087 Исследование уровня пролактина в крови  "]
["Бунчук Марина Михайловна"," А09.05.078 Исследование уровня общего тестостерона в крови  "]
["Онищенко Зоя Владимировна"," A09.05.154 Исследование уровня общего эстрадиола в крови  "]
["Муединова Эльвира Разимовна"," А26.06.029.002 Определение антител класса G (IgG) к капсидному антигену (VCA) вируса Эпштейна-Барр (Epstein-Barr virus) в крови  "]
["Новакова Владислава Владимировна"," А26.06.030 Определение антител класса G (IgG) к ранним белкам антигену (ЕA) вируса Эпштейна-Барр (Epstein-Barr virus) в крови  "]
["Турчанинова Людмила Ивановна"," А26.06.031 Определение антител класса G (IgG) к ядерному антигену (NA) вируса Эпштейна-Барр (Epstein-Barr virus) в крови  "]
["Кушнерюк Светлана Ярославовна"," А26.06.029.001 Определение антител класса М (IgМ) к капсидному антигену (VCA) вируса Эпштейна-Барр (Epstein-Barr virus) в крови  "]
["Кушнир Елена Федоровна"," А09.05.209 Исследование уровня прокальцитонина в крови  "]
["Сердюк Светлана Александровна"," А09.05.023 Исследование уровня глюкозы в крови  "]
["Никифоров Константин Евгеньевич"," А09.05.010 Исследование уровня общего белка в крови  "]
["Каретникова Марина Сергеевна "," А09.05.011 Исследование уровня альбумина в крови  "]
["Бабенко Татьяна Владимировна"," А09.05.017 Исследование уровня мочевины в крови  "]
["Пейливанова Ольга Викторовна"," А09.05.019 Исследование уровня креатинина в крови "]
["Сысоева Наталья Александровна"," А09.05.026 Исследование уровня холестерина в крови  "]
["Верменич Ксения Валериевна"," А09.05.022 Исследование уровня свободного и связанного билирубина в крови  "]
["Жогова Ольга Валерьевна"," А09.05.042 Определение активности аланинаминотрансферазы в крови  "]
["Гожик Алина Игоревна"," А09.05.041 Определение активности аспартатаминотрансферазы в крови  "]
["Ивановский Сергей Владимирович"," А09.05.046 Определение активности щелочной фосфатазы в крови  "]
["Щукин Сергей Юрьевич"," А09.05.045 Определение активности амилазы в крови  "]
["Воронина Екатерина Игоревна"," А09.05.044 Определение активности гамма-глютамилтрансферазы в крови  "]
["Урсина Евгения Олеговна"," А09.05.039 Определение активности лактатдегидрогеназы в крови  "]
["Лацабидзе Дарья Игоревна"," A09.05.025 Исследование уровня триглицеридов в крови  "]
["Мищук Ольга Владимировна"," A09.05.043 Определение активности креатинкиназы в крови  "]
["Черненкова Арина Витальевна"," А09.05.027 Исследование уровня липопротеинов в крови  "]
["Бондарь Кристина Геннадьевна"," А09.05.127 Исследование уровня общего магния в сыворотке крови  "]
[null," А09.05.031 Исследование уровня калия в крови  "]
[null," А09.05.030 Исследование уровня натрия в крови  "]
[null," А09.05.034 Исследование уровня хлоридов в крови  "]
[null," А09.05.032 Исследование уровня общего кальция в крови  "]
[null," А09.05.033 Исследование уровня неорганического фосфора в крови  "]
[null," А09.05.007 Исследование уровня железа сыворотки крови  "]
[null," А09.05.009 Исследование уровня С-реактивного белка в сыворотке крови  "]
[null," A12.06.019 Определение содержания ревматоидного фактора в крови "]
[null," A12.06.015 Определение антистрептолизина-О в сыворотке крови  "]
[null," А09.05.018 Исследование уровня мочевой кислоты в крови  "]
[null," А09.05.083 Исследование уровня гликированного гемоглобина в крови  "]
[null," A09.28.003.001 Определение альбумина в моче  "]
[null," А09.28.012 Исследование уровня кальция в моче  "]
[null," А09.28.026 Исследование уровня фосфора в моче  "]
[null," A09.28.010  Исследование уровня мочевой кислоты в моче  "]
[null," А09.28.027 Определение активности альфа-амилазы в моче  "]
[null," A09.28.006 Исследование уровня креатинина в моче  "]
[null," А09.23.004 Исследование уровня белка в спинномозговой жидкости  "]
[null,"  А09.23.003 Исследование уровня глюкозы в спинномозговой жидкости "]
[null," А09.23.012 Исследование уровня хлоридов в спинномозговой жидкости  "]
[null," B03.005.006 Коагулограмма (ориентировочное исследование системы гемостаза)  "]
[null," А12.05.027 Определение протромбинового (тромбопластинового) времени в крови или в плазме  "]
[null," A12.05.039 Активированное частичное тромбопластиновое время  "]
[null," A09.05.050 Исследование уровня фибриногена в крови  "]
[null," A12.05.017 Исследование агрегации тромбоцитов  "]
[null," A12.05.017 Исследование агрегации тромбоцитов  "]
[null," A12.05.017 Исследование агрегации тромбоцитов  "]
[null," A12.05.017 Исследование агрегации тромбоцитов  "]
[null," A09.05.051.001 Определение концентрации Д-димера в крови  "]
[null," B03.016.002 Общий (клинический) анализ крови  "]
[null," А12.05.120 Исследование уровня тромбоцитов в крови  "]
[null," А12.05.054 Исследование адгезии тромбоцитов  "]
[null," А12.05.122 Исследование уровня ретикулоцитов в крови  "]
[null," A12.05.015 Исследование времени кровотечения  "]
[null," A12.05.002 Исследование осмотической резистентности эритроцитов  "]
[null," A12.23.004 Микроскопическое исследование спинномозговой жидкости, подсчет клеток в счетной камере (определение цитоза)  "]
[null," B03.016.003 Общий (клинический) анализ крови развернутый  "]
[null," A12.05.001 Исследование скорости оседания эритроцитов  "]
[null," Клинические анализы "]
[null," A26.05.009 Микроскопическое исследование \"толстой капли\" и \"тонкого\" мазка крови на малярийные плазмодии  "]
[null," В03.016.006 Общий (клинический) анализ мочи  "]
[null," А09.28.015.001 Обнаружение кетоновых тел в моче экспресс-методом   "]
[null,"  В03.016.015 Исследование мочи методом Зимницкого "]
[null," В03.016.014 Исследование мочи методом Нечипоренко  "]
[null," А09.28.003.002 Определение количества белка в суточной моче  "]
[null," A26.19.010 Микроскопическое исследование кала на яйца и личинки гельминтов  "]
[null," A26.01.017 Микроскопическое исследование отпечатков с поверхности кожи перианальных складок на яйца остриц (Enterobius vermicularis)  "]
[null," В03.016.010 Копрологическое исследование  "]
[null," A26.19.011 Микроскопическое исследование кала на простейшие  "]
[null," А09.19.001 Исследование кала на скрытую кровь  "]
[null," А12.05.121 Дифференцированный подсчет лейкоцитов (лейкоцитарная формула)  "]
[null," А12.20.001 Микроскопическое исследование влагалищных мазков  "]
[null," A08.20.017 Цитологическое исследование микропрепарата шейки матки  "]
[null," A09.28.007 Обнаружение желчных пигментов в моче  "]
[null," А09.28.005 Обнаружение гемоглобина в моче  "]
[null," В01.002.001 Прием (осмотр, консультация) врача аллерголога-иммунолога первичный  "]
[null," В01.037.001 Прием (осмотр, консультация) врача- пульмонолога первичный  "]
[null," В01.004.001 Прием (осмотр, консультация) врача-гастроэнтеролога первичный  "]
[null," В01.008.001 Прием (осмотр, консультация) врача-дерматовенеролога первичный  "]
[null," В01.025.001 Прием (осмотр, консультация) врача-нефролога первичный  "]
[null," В01.058.003 Консультация врача-детского-эндокринолога  "]
[null," В01.053.003 Прием (осмотр, консультация) врача-детского уролога-андролога первичный  "]
[null," В01.010.001 Прием (осмотр, консультация) врача-детского-хирурга первичный  "]
[null," В01.068.001 Консультация врача-челюстно-лицевого хирурга  "]
[null," В01.028.001 Прием (осмотр, консультация) врача-оториноларинголога первичный  "]
[null," В01.001.001 Прием (осмотр, консультация) врача-акушера-гинеколога  первичный  "]
[null," В01.050.001Прием (осмотр, консультация) врача-травматолога-ортопеда  первичный  "]
[null," В01.024.001 Консультация врача-нейрохирурга  "]
[null," В01.023.001 Прием (осмотр, консультация) врача-невролога первичный  "]
[null," В01.031.001 Прием (осмотр, консультация) врача-педиатра первичный  "]
[null," В01.015.003 Консультация врача-детского-кардиолога  "]
[null,"  В01.040.001 Консультация врача-ревматолога "]
[null," В01.029.001 Прием (осмотр, консультация) врача-офтальмолога  "]
[null," В01.005.001 Консультация врача-гематолога  "]
[null," В01.046.001 Консультация врача-сурдолога-оториноларинголога  "]
[null," A06.12.012.001 Артериально-стимулированный венозный забор крови  "]
[null," A06.16.001.002 Рентгеноскопия пищевода с контрастированием  "]
[null," A06.16.007 Рентгеноскопия желудка и двенадцатиперстной кишки  "]
[null," A06.18.001 Ирригоскопия  "]
[null," A06.30.002.001 Описание и интерпретация компьютерных томограмм  "]
[null,"  A06.30.002.002 Описание и интерпретация магнитно-резонансных томограмм  "]
[null," A06.30.002 Описание и интерпретация рентгенографических изображений  "]
[null," A06.03.013 Рентгенография грудного отдела позвоночника  "]
[null,"  A06.03.014 Рентгенография грудного и поясничного отдела позвоночника "]
[null," A06.03.015 Рентгенография поясничного отдела позвоночника  "]
[null,"  A06.03.017 Рентгенография крестца и копчика "]
[null," A06.03.018 Рентгенография позвоночника, специальные исследования и проекции  "]
[null,"  A06.03.005 Рентгенография всего черепа, в одной или более проекциях "]
[null," A06.03.001 Рентгенография черепа тангенциальная  "]
[null," A06.03.007 Рентгенография первого и второго шейного позвонка  "]
[null," A06.03.009 Рентгенография зубовидного отростка (второго шейного позвонка)  "]
[null," A06.03.010 Рентгенография шейного отдела позвоночника  "]
[null," A06.03.011 Рентгенография шейно-дорсального отдела позвоночника  "]
[null," A06.03.021 Рентгенография верхней конечности  "]
[null," A06.03.022 Рентгенография ключицы  "]
[null," A06.03.023 Рентгенография ребра(ер)  "]
[null," A06.03.024 Рентгенография грудины  "]
[null," A06.03.026 Рентгенография лопатки  "]
[null," A06.03.027 Рентгенография головки плечевой кости  "]
[null," A06.03.028 Рентгенография плечевой кости  "]
[null," A06.03.029 Рентгенография локтевой кости и лучевой кости  "]
[null," A06.03.036 Рентгенография нижней конечности  "]
[null," A06.03.037 Рентгенография подвздошной кости  "]
[null," A06.03.038 Рентгенография седалищной кости  "]
[null," A06.03.040 Рентгенография лонного сочленения  "]
[null," A06.03.041 Рентгенография таза  "]
[null,"  A06.03.042 Рентгенография головки и шейки бедренной кости "]
[null," A06.03.042 Рентгенография бедренной кости  "]
[null," A06.03.044 Рентгенография диафиза бедренной кости  "]
[null," A06.03.045 Рентгенография надколенника  "]
[null," A06.03.046 Рентгенография большой берцовой и малой берцовой костей  "]
[null," A06.03.047 Рентгенография диафиза большой берцовой и малой берцовой костей  "]
[null," A06.03.048 Рентгенография лодыжки  "]
[null," A06.03.056 Рентгенография костей лицевого скелета  "]
[null," A06.03.060 Рентгенография черепа в прямой проекции  "]
[null," A06.04.002 Рентгенография межпозвоночных сочленений  "]
[null," A06.04.003 Рентгенография локтевого сустава  "]
[null," A06.04.004 Рентгенография лучезапястного сустава  "]
[null," A06.04.005 Рентгенография коленного сустава  "]
[null," A06.04.010 Рентгенография плечевого сустава  "]
[null," A06.04.011 Рентгенография тазобедренного сустава  "]
[null," A06.04.012 Рентгенография голеностопного сустава  "]
[null," A06.04.013 Рентгенография акромиально-ключичного сустава  "]
[null,"  A06.04.014 Рентгенография грудино-ключичного сочленения "]
[null," A06.09.007.001 Прицельная рентгенография органов грудной клетки  "]
[null," A06.09.007.002 Рентгенография легких цифровая  "]
[null," A06.16.009 Рентгенография желудочно-кишечная  "]
[null," A06.17.002 Рентгеноконтроль прохождения контраста по желудку, тонкой и ободочной кишке  "]
[null," A06.18.002 Рентгеноконтроль прохождения контраста по толстому кишечнику  "]
[null," A06.19.001 Рентгенография нижней части брюшной полости  "]
[null,"  A06.30.004 Обзорный снимок брюшной полости и органов малого таза "]
[null," A06.03.030 Рентгенография запястья  "]
[null," A06.03.031 Рентгенография пясти  "]
[null," A06.03.032 Рентгенография кисти   "]
[null," A06.03.033 Рентгенография фаланг  пальцев кисти  "]
[null," A06.03.034 Рентгенография пальцев фаланговых костей кисти  "]
[null," A06.03.035 Рентгенография   l пальца руки  "]
[null," A06.03.049 Рентгенография предплюсны  "]
[null," A06.03.050 Рентгенография пяточной кости  "]
[null," A06.03.051 Рентгенография плюсны и фаланг  пальцев стопы  "]
[null," A06.03.052 Рентгенография стопы в одной проекции  "]
[null,"  A06.03.054 Рентгенография  фаланг пальцев ноги "]
[null," A06.03.055 Рентгенография  l пальца стопы  "]
[null," A06.03.013 Рентгенография грудного отдела позвоночника  "]
[null," A06.03.014 Рентгенография грудного и поясничного отдела позвоночника  "]
[null," A06.03.015 Рентгенография поясничного отдела позвоночника  "]
[null," A06.03.017 Рентгенография крестца и копчика  "]
[null," A06.03.018 Рентгенография позвоночника, специальные исследования и проекции  "]
[null," A06.03.005 Рентгенография всего черепа,в одной или более проекциях  "]
[null," A06.03.001 Рентгенография черепа тангенциальная   "]
[null,"  A06.03.007 Рентгенография первого и второго шейного позвонка "]
[null," A06.03.009 Рентгенография зубовидного отростка (второго шейного позвонка)  "]
[null," A06.03.010 Рентгенография шейного отдела позвоночника  "]
[null," A06.03.011 Рентгенография шейно-дорсального отдела позвоночника  "]
[null," A06.03.021 Рентгенография верхней конечности  "]
[null," A06.03.022 Рентгенография ключицы  "]
[null,"  A06.03.023 Рентгенография ребра(ер) "]
[null," A06.03.024 Рентгенография грудины  "]
[null," A06.03.026 Рентгенография лопатки  "]
[null," A06.03.027 Рентгенография головки плечевой кости  "]
[null,"  A06.03.028 Рентгенография плечевой кости "]
[null," A06.03.029 Рентгенография локтевой кости и лучевой кости  "]
[null," A06.03.036 Рентгенография нижней конечности  "]
[null," A06.03.037 Рентгенография подвздошной кости  "]
[null," A06.03.038 Рентгенография седалищной кости  "]
[null," A06.03.040 Рентгенография лонного сочленения  "]
[null," A06.03.041 Рентгенография всего таза  "]
[null," A06.03.042 Рентгенография головки и шейки бедренной кости  "]
[null," A06.03.043 Рентгенография бедренной кости  "]
[null,"   A06.03.044 Рентгенография диафиза бедренной кости "]
[null," A06.03.045 Рентгенография надколенника  "]
[null," A06.03.046 Рентгенография большой берцовой и малой берцовой костей  "]
[null," A06.03.047 Рентгенография диафиза большой берцовой и малой берцовой костей  "]
[null,"  A06.03.048 Рентгенография лодыжки "]
[null," Рентгенография костей лицевого скелета  "]
[null," A06.03.060 Рентгенография черепа в прямой проекции   "]
[null,"  A06.04.002 Рентгенография межпозвоночных сочленений "]
[null," A06.04.003 Рентгенография локтевого сустава  "]
[null," A06.04.004 Рентгенография лучезапястного сустава  "]
[null," A06.04.005 Рентгенография коленного сустава  "]
[null," A06.04.010 Рентгенография плечевого сустава  "]
[null," A06.04.011 Рентгенография бедренного сустава  "]
[null," A06.04.012 Рентгенография голеностопного сустава  "]
[null," A06.04.013 Рентгенография акромиально-ключичного сустава  "]
[null,"  A06.04.014 Рентгенография грудино-ключичного сочленения "]
[null," A06.09.007.001 Прицельная рентгенография органов грудной клетки  "]
[null,"  A06.09.007.002 Рентгенография легких цифровая "]
[null," A06.16.009 Рентгенография желудочно-кишечная  "]
[null," A06.17.002 Рентгеноконтроль прохождения контраста по желудку, тонкой и ободочной кишке  "]
[null," A06.18.002 Рентгеноконтроль прохождения контраста по толстому кишечнику  "]
[null,"  A06.19.001 Рентгенография нижней части брюшной полости "]
[null," A06.30.004 Обзорный снимок брюшной полости и органов малого таза  "]
[null," A06.03.030 Рентгенография запястья  "]
[null," A06.03.031 Рентгенография пясти  "]
[null,"  A06.03.032 Рентгенография кисти руки "]
[null," A06.03.033 Рентгенография фаланг кисти  "]
[null," A06.03.034 Рентгенография пальцев руки  "]
[null," A06.03.035 Рентгенография l пальца кисти  "]
[null," A06.03.049 Рентгенография предплюсны  "]
[null,"  A06.03.050 Рентгенография пяточной кости "]
[null," A06.03.051 Рентгенография плюсны и фаланг  пальцев стопы  "]
[null," A06.03.053 Рентгенография стопы в двух проекциях  "]
[null," A06.03.054 Рентгенография пальцев ноги  "]
[null," A06.03.055 Рентгенография l пальца стопы  "]
[null," A06.03.053 Рентгенография стопы в двух проекциях  "]
[null," А06.03.053.001 Рентгенография стопы с функциональной нагрузкой  "]
[null," A06.04.001 Рентгенография височно-нижнечелюстного сустава  "]
[null," A06.07.009 Рентгенография нижней челюсти в боковой проекции  "]
[null," A06.26.002 Рентгенография глазного отверстия и канала зрительного нерва  "]
[null,"  А06.03.041 Рентгенография таза "]
[null," А06.03.018 Рентгенография позвоночника, специальные исследования и проекции                                                                                                              "]
[null," A06.08.003 Рентгенография придаточных пазух носа  "]
[null," A06.26.001 Рентгенография глазницы  "]
[null," А06.03.002 Компьютерная томография лицевого отдела черепа  "]
[null," А06.03.002.004 Компьютерно-томографическое перфузионное исследование лицевого отдела черепа  "]
[null," А06.03.021.001 Компьютерная томография верхней конечности  "]
[null," А06.03.036.001 Компьютерная томография нижней конечности  "]
[null,"  А06.03.058 Компьютерная томография позвоночника (один отдел) "]
[null," А06.03.058.001 Компьютерная томография позвоночника с мультипланарной и трехмерной реконструкцией  "]
[null," А06.03.062 Компьютерная томография кости  "]
[null,"  А06.04.017 Компьютерная томография сустава "]
[null," А06.08.007 Компьютерная томография придаточных пазух носа, гортани  "]
[null," А06.08.007.001 Спиральная компьютерная томография гортани  "]
[null," А06.08.007.003 Спиральная компьютерная томография придаточных пазух носа  "]
[null," А06.09.005 Компьютерная томография органов грудной полости  "]
[null," А06.20.002 Компьютерная томография органов малого таза у женщин  "]
[null," А06.20.002.001 Спиральная компьютерная томография органов малого таза у женщин  "]
[null," А06.21.003 Компьютерная томография органов таза у мужчин  "]
[null," А06.25.003 Компьютерная томография височной кости  "]
[null," А06.26.006 Компьютерная томография глазницы  "]
[null," А06.28.009 Компьютерная томография почек и надпочечников  "]
[null," А06.28.009.002 Спиральная компьютерная томография почек и надпочечников  "]
[null," А06.30.005 Компьютерная томография органов брюшной полости  "]
[null," А06.30.005.001 Компьютерная томография органов брюшной полости и забрюшинного пространства  "]
[null," А06.30.007 Компьютерная томография забрюшинного пространства  "]
[null," А06.03.002 Компьютерная томография лицевого отдела черепа  "]
[null," А06.03.002.004 Компьютерно-томографическое перфузионное исследование лицевого отдела черепа  "]
[null," А06.03.021.001 Компьютерная томография верхней конечности  "]
[null," А06.03.036.001 Компьютерная томография нижней конечности  "]
[null,"  А06.03.058 Компьютерная томография позвоночника (один отдел) "]
[null," А06.03.058.001 Компьютерная томография позвоночника с мультипланарной и трехмерной реконструкцией  "]
[null," А06.03.062 Компьютерная томография кости  "]
[null,"  А06.04.017 Компьютерная томография сустава "]
[null," А06.08.007 Компьютерная томография придаточных пазух носа, гортани  "]
[null," А06.08.007.001 Спиральная компьютерная томография гортани  "]
[null," А06.08.007.003 Спиральная компьютерная томография придаточных пазух носа  "]
[null," А06.09.005 Компьютерная томография органов грудной полости  "]
[null," А06.20.002 Компьютерная томография органов малого таза у женщин  "]
[null," А06.20.002.001 Спиральная компьютерная томография органов малого таза у женщин  "]
[null," А06.21.003 Компьютерная томография органов таза у мужчин  "]
[null," А06.25.003 Компьютерная томография височной кости  "]
[null," А06.26.006 Компьютерная томография глазницы  "]
[null," А06.28.009 Компьютерная томография почек и надпочечников  "]
[null," А06.28.009.002 Спиральная компьютерная томография почек и надпочечников  "]
[null," А06.03.021.002 Компьютерная томография верхней конечности с внутривенным болюсным контрастированием  "]
[null," А06.03.021.003 Компьютерная томография верхней конечности с внутривенным болюсным контрастированием, мультипланарной и трехмерной реконструкцией  "]
[null," Ультравист, р-р д/ин. 370 мг йода/мл, 30 мл,   "]
[null," Ультравист, р-р д/ин. 370 мг йода/мл, фл. 50 мл "]
[null," Ультравист, р-р д/ин. 300 мг йода/мл, фл. 100 мл "]
[null," A05.01.002 Магнитно-резонансная томография мягких тканей  "]
[null," A05.02.002 Магнитно-резонансная томография мышечной системы  "]
[null," A05.03.001 Магнитно-резонансная томография костной ткани (одна область)   "]
[null,"  А05.03.002 Магнитно-резонансная томография позвоночника (один отдел) "]
[null," А05.04.001 Магнитно-резонансная томография суставов (один сустав)  "]
[null," А05.08.001 Магнитно-резонансная томография околоносовых пазух  "]
[null," А05.08.002 Магнитно-резонансная томография гортаноглотки  "]
[null," А05.11.001 Магнитно-резонансная томография средостения  "]
[null," А05.15.001 Магнитно-резонансная томография поджелудочной железы  "]
[null," А05.15.002 Магнитно-резонансная холангиопанкреатография  "]
[null," А05.23.009 Магнитно-резонансная томография головного мозга  "]
[null," А05.23.009.004 Магнитно-резонансная диффузия головного мозга  "]
[null," А05.23.009.010 Магнитно-резонансная томография спинного мозга (один отдел)  "]
[null," А05.26.008 Магнитно-резонансная томография глазницы  "]
[null,"  А05.28.002 Магнитно-резонансная томография почек "]
[null,"  А05.30.004 Магнитно-резонансная томография органов малого таза "]
[null," А05.30.005 Магнитно-резонансная томография органов брюшной полости  "]
[null," А05.30.007 Магнитно-резонансная томография забрюшинного пространства  "]
[null," А05.30.010 Магнитно-резонансная томография мягких тканей головы  "]
[null," A05.30.011 Магнитно-резонансная томография верхней конечности  "]
[null," A05.30.012 Магнитно-резонансная томография нижней конечности  "]
[null," A05.01.002 Магнитно-резонансная томография мягких тканей  "]
[null," A05.02.002 Магнитно-резонансная томография мышечной системы  "]
[null," A05.03.001 Магнитно-резонансная томография костной ткани (одна область)   "]
[null,"  А05.03.002 Магнитно-резонансная томография позвоночника (один отдел) "]
[null," А05.04.001 Магнитно-резонансная томография суставов (один сустав)  "]
[null," А05.08.001 Магнитно-резонансная томография околоносовых пазух  "]
[null," А05.08.002 Магнитно-резонансная томография гортаноглотки  "]
[null," А05.11.001 Магнитно-резонансная томография средостения  "]
[null," А05.15.001 Магнитно-резонансная томография поджелудочной железы  "]
[null," А05.15.002 Магнитно-резонансная холангиопанкреатография  "]
[null," А05.23.009 Магнитно-резонансная томография головного мозга  "]
[null," А05.23.009.010 Магнитно-резонансная томография спинного мозга (один отдел)  "]
[null," А05.23.009.005 Магнитно-резонансная ликворография головного мозга  "]
[null," А05.23.009.014 Магнитно-резонансная ликворография спинного мозга (один отдел)  "]
[null," А05.26.008 Магнитно-резонансная томография глазницы  "]
[null," А05.28.002 Магнитно-резонансная томография почек  "]
[null," А05.30.004 Магнитно-резонансная томография органов малого таза  "]
[null," А05.30.005 Магнитно-резонансная томография органов брюшной полости  "]
[null,"  А05.30.007 Магнитно-резонансная томография забрюшинного пространства "]
[null," А05.30.010 Магнитно-резонансная томография мягких тканей головы  "]
[null," A05.30.010.001 Магнитно-резонансная томография мягких тканей головы с внутривенным контрастированием  "]
[null," A05.30.011 Магнитно-резонансная томография верхней конечности  "]
[null," A05.30.012 Магнитно-резонансная томография нижней конечности  "]
[null," Гадовист, р-р для в/в введ. 1 ммоль/мл, шпр. 5 мл "]
[null," Гадовист, р-р для в/в введ. 1 ммоль/мл, шпр. 7,5 мл "]
[null," Гадовист, р-р для в/в введ. 1 ммоль/мл, фл. 15 мл "]
[null," A04.22.001 УЗИ щитовидной железы и паращитовидных желез  "]
[null," A04.28.003 УЗИ мочевого пузыря  "]
[null," A04.28.002.005 УЗИ мочевого пузыря с определением остаточной мочи  "]
[null," A04.28.002.001 УЗИ вилочковой железы  "]
[null," A04.28.002.001 УЗИ печени  "]
[null," A04.14.002 УЗИ желчного пузыря с определением его сократимости  "]
[null,"  A04.01.001 УЗИ мягких тканей (одна анатомическая зона) "]
[null," A04.28.002.001 УЗИ  почек  "]
[null," A04.09.001 УЗИ плевральной полости  "]
[null," A04.15.001 УЗИ поджелудочной железы  "]
[null," A04.06.001 УЗИ селезенки  "]
[null," A04.07.002 УЗИ  слюнных желез  "]
[null," A04.06.002 УЗИ лимфатических узлов (одна анатомическая зона)  "]
[null," A04.28.001 УЗИ почек и надпочечников  "]
[null," A04.28.003 УЗИ органов мошонки  "]
[null," A04.22.002 УЗИ надпочечников  "]
[null," A04.16.001 УЗИ брюшной полости (комплексное)  "]
[null," A04.28.002.002 УЗИ  мочевыводящих  путей  "]
[null," A04.20.002.002 УЗИ молочных желез с допплеровским исследованием  "]
[null," A04.26.003 Ультразвуковое сканирование глазницы  "]
[null," A04.12.008 Дуплексное сканирование сосудов мошонки и полового члена  "]
[null," A04.20.001 УЗИ матки и придатков трансабдоминальное  "]
[null," A04.23.001 Нейросонография  "]
[null,"  A04.04.001 УЗИ сустава "]
[null," A04.04.001.001 УЗИ тазобедренного сустава  "]
[null," A04.14.002.001 УЗИ желчного пузыря с определением его сократимости  "]
[null," A04.16.001 УЗИ органов брюшной полости (комплексное)  "]
[null,"  A04.10.002 Эхокардиография "]
[null," А03.16.001 Эзофагогастродуоденоскопия  "]
[null," А03.18.001.001 Видеоколоноскопия  "]
[null," A20.30.028 ГБО при синдроме длительного сдавления  "]
[null," A20.30.028 ГБО при синдроме длительного сдавления  "]
[null," A20.15.001 ГБО при заболеваниях поджелудочной железы  "]
[null," A20.15.001 ГБО при заболеваниях поджелудочной железы  "]
[null," A20.18.002  ГБО при заболеваниях толстой кишки  "]
[null," A20.18.002  ГБО при заболеваниях толстой кишки  "]
[null," A20.24.005 ГБО при заболеваниях периферической нервной системы  "]
[null," A20.24.005 ГБО при заболеваниях периферической нервной системы  "]
[null," A20.24.005.001 ГБО при заболеваниях центральной нервной системы  "]
[null," A20.24.005.001 ГБО при заболеваниях центральной нервной системы  "]
[null," A20.25.001 ГБО при заболеваниях уха  "]
[null," A20.25.001 ГБО при заболеваниях уха  "]
[null," A20.26.001  Гипо-, нормо- и ГБО при заболеваниях органа зрения  "]
[null," A20.26.001  Гипо-, нормо- и ГБО при заболеваниях органа зрения  "]
[null," A20.01.002 Оксигенотерапия при заболеваниях кожи  "]
[null," A20.01.002 Оксигенотерапия при заболеваниях кожи  "]
[null," А20.01.002 Оксигенотерапия (гипер-, нормо- или гипобарическая) при заболеваниях легких  "]
[null," А20.01.002 Оксигенотерапия (гипер-, нормо- или гипобарическая) при заболеваниях легких  "]
[null," A20.10.001 Оксигенотерапия (гипер- и нормобарическая) при заболеваниях сердца  "]
[null," A20.10.001 Оксигенотерапия (гипер- и нормобарическая) при заболеваниях сердца  "]
[null," A20.16.004 ГБО при заболеваниях желудка  "]
[null," A20.16.004 ГБО при заболеваниях желудка  "]
[null," A05.10.004 Расшифровка, описание и интерпретация электрокардиографических данных  "]
[null," A05.10.001 Регистрация электрической активности проводящей системы сердца  "]
[null,"  A12.10.001 Электрокардиография с физической нагрузкой  "]
[null," A12.09.001 Исследование неспровоцированных дыхательных объемов и потоков  "]
[null," А12.09.002.001 Исследование дыхательных объемов с применением лекарственых препаратов "]
[null," A05.23.001.000 Электроэнцефалография с нагрузочными пробами  "]
[null," A05.10.008 Холтеровское мониторирование сердечного ритма  "]
[null," A05.10.008 Холтеровское мониторирование сердечного ритма  (свыше 24 часа ) "]
[null," А04.23.002 Эхоэнцефалография  "]
[null," A05.02.001 Электромиография игольчатая (одна мышца)  "]
[null," A05.02.001.005 Электромиография стимуляционная локтевого нерва  "]
[null," А05.02.001.006 Электромиография стимуляционная лучевого нерва  "]
[null," A17.26.003 Электростимуляция зрительного нерва  "]
[null," А17.01.007 Дарсонвализация кожи  "]
[null," A20.30.018 Спелеовоздействие  "]
[null,"  A17.30.034 Ультрафонофорез лекарственный "]
[null," A17.29.002 Электросон  "]
[null," A17.24.009 Воздействие магнитными полями при заболеваниях периферической нервной системы  "]
[null," A17.30.019.001 Воздействие магнитными полями при заболеваниях мышц  "]
[null," А17.30.017 Воздействие электрическим полем ультравысокой частоты (ЭП УВЧ)  "]
[null," А22.30.003 Воздействие коротким ультрафиолетовым излучением  "]
[null," А17.13.001 Электрофорез лекарственных препаратов при нарушениях микроциркуляции  "]
[null," A17.12.001 Электрофорез при заболеваниях крупных кровеносных сосудов  "]
[null," A17.14.001 Электрофорез лекарственных препаратов при заболеваниях печени и желчевыводящих путей  "]
[null," A17.20.002 Электрофорез лекарственных препаратов при заболеваниях женских половых органов  "]
[null," A17.26.001 Электрофорез лекарственных препаратов при заболеваниях органа зрения  "]
[null," A17.28.001 Электрофорез лекарственных препаратов при заболеваниях почек  "]
[null," A17.24.005 Электрофорез лекарственных препаратов при заболеваниях периферической нервной системы  "]
[null," A17.25.001 Внутриушной электрофорез лекарственных препаратов при заболеваниях органа слуха  "]
[null," A22.01.006 Ультрафиолетовое облучение кожи  "]
[null," А17.30.018 Воздействие электромагнитным излучением дециметрового диапазона (ДМВ)  "]
[null,"  А20.03.003 Воздействие озокеритом при заболеваниях костной системы "]
[null," A20.09.004 Воздействие парафином (озокеритом) при заболеваниях нижних дыхательных путей и легочной ткани  "]
[null," A20.14.003 Воздействие парафином (озокеритом) при заболеваниях печени и желчевыводящих путей  "]
[null," A20.16.003 Воздействие парафином (озокеритом) при заболеваниях пищевода, желудка, двенадцатиперстной кишки  "]
[null," A20.23.002 Воздействие парафином (озокеритом) при заболеваниях центральной нервной системы  "]
[null," A21.01.003.001 Массаж воротниковой области  (10 минут) "]
[null," A21.01.003.001 Массаж шеи медицинский  (10 минут) "]
[null," A21.01.004.002 Массаж плечевого сустава  (10 минут) "]
[null," A21.01.004.003 Массаж локтевого сустава  (10 минут) "]
[null," A21.01.004.00 Массаж лучезапястного сустава 4 (10 минут) "]
[null," A21.01.005 Массаж волосистой части головы медицинский  (10 минут) "]
[null," A21.01.009.003 Массаж коленного сустава  (10 минут) "]
[null," A21.01.009.004 Массаж голеностопного сустава  (10 минут) "]
[null," A21.01.009 Массаж нижней конечности медицинский  (15 минут) "]
[null," A21.01.009.002 Массаж тазобедренного сустава и ягодичной области  (15 минут) "]
[null," A21.01.004  Массаж верхней конечности медицинский (15 минут) "]
[null," A21.03.002.001 Массаж пояснично-крестцовой области  (15 минут) "]
[null," A21.14.001 Массаж при заболеваниях печени, желчного пузыря, желчевыводящих путей  (15 минут) "]
[null,"  A21.09.002 Массаж при хронических неспецифических заболеваниях легких (20 минут) "]
[null," A21.30.005 Массаж грудной клетки медицинский  (20 минут) "]
[null," A21.03.007 Массаж спины медицинский  (20 минут) "]
[null," A21.01.001 Общий массаж медицинский  "]
[null," A21.08.002 Лечебная физкультура при заболеваниях верхних дыхательных путей  "]
[null," A19.03.001 Лечебная физкультура при травме позвоночника  "]
[null," A19.03.003 Лечебная физкультура при переломе костей  "]
[null," A17.30.028 Аэрозольтерапия  "]
[null," A17.30.004 Воздействие синусоидальными модулированными токами  "]
[null," B01.003.004.009 Тотальная внутривенная анестезия (25 мин) "]
[null," B01.003.004.009 Тотальная внутривенная анестезия  (30 мин) "]
[null," B01.003.004.009 Тотальная внутривенная анестезия B01.003.004.009 (45 мин) "]
[null," B01.003.004.009 Тотальная внутривенная анестезия  (80 мин) "]
[null," B01.003.004.009 Тотальная внутривенная анестезия (120 мин) "]
[null," B01.003.004.009 Тотальная внутривенная анестезия  (150 мин) "]
[null," B01.003.004.009 Тотальная внутривенная анестезия  (210 мин) "]
[null," B01.003.004.009 Тотальная внутривенная анестезия  (270 мин) "]

{"sheet":"Tmp_####","index":5,"n_rows":0,"n_cols":0,"rows_kept":0,"cut":false,"hidden":true,"merged":[]}